Workbook

Sheet Cover
B4: Youth Offending Service Inspection Data Tool
B6: 2018/2020 inspections
A7: Coverage:
A8: England and Wales
A10: Released:
A11: 30th November 2020
A14: Contact:
A15: hmireturns@hmiprobation.gov.uk
A17: HMI Probation
A18: Civil Justice Centre
A19: Manchester
A20: M3 3FX

Sheet Notes
A2: Notes

Sheet User Guide
B2: User Guide
K3: Filters
K16: Child / Young person characteristics

Sheet Domain 2
A1: Court disposal | E1: Child / Young person
A3: Disposal | E3: Gender | G3: Age group | I3: Ethnic group | K3: Risk of serious harm | N3: Safety and wellbeing classification | R3: Looked after child
A14: Standard 2.1: Assessment
O16: Sample sizes
O18: 2.1.1
O19: No. of cases | Q19: ='D2 Pivot_Chart Data'!B12 -> 1252
O23: 2.1.2
O24: No. of cases | Q24: ='D2 Pivot_Chart Data'!C12 -> 1251
O29: 2.1.3
O30: No. of cases | Q30: ='D2 Pivot_Chart Data'!D12 -> 1249
A40: Standard 2.2: Planning
O42: Sample sizes
O44: 2.2.1
O45: No. of cases | Q45: ='D2 Pivot_Chart Data'!G12 -> 1240
O49: 2.2.2
O50: No. of cases | Q50: ='D2 Pivot_Chart Data'!H12 -> 1122
O55: 2.2.3
O56: No. of cases | Q56: ='D2 Pivot_Chart Data'!I12 -> 1069
A66: Standard 2.3: Implementation and Delivery
O68: Sample sizes
O70: 2.3.1
O71: No. of cases | Q71: ='D2 Pivot_Chart Data'!L12 -> 1203
O75: 2.3.2
O76: No. of cases | Q76: ='D2 Pivot_Chart Data'!M12 -> 1091
O81: 2.3.3
O82: No. of cases | Q82: ='D2 Pivot_Chart Data'!N12 -> 1035
A92: Standard 2.4: Reviewing
O94: Sample sizes
O96: 2.4.1
O97: No. of cases | Q97: ='D2 Pivot_Chart Data'!Q12 -> 1243
O101: 2.4.2
O102: No. of cases | Q102: ='D2 Pivot_Chart Data'!R12 -> 910
O107: 2.4.3
O108: No. of cases | Q108: ='D2 Pivot_Chart Data'!S12 -> 775
A119: .

Sheet Domain 3
A1: Out of court disposal | F1: Child / Young person
A3: Disposal | F3: Gender | H3: Age group | J3: Ethnic group | L3: Risk of serious harm | O3: Safety and wellbeing classification
A14: Standard 3.1: Assessment
O16: Sample sizes
O18: 3.1.1
O19: No. of cases | Q19: ='D3 Pivot_Chart Data'!B12 -> 809
O23: 3.1.2
O24: No. of cases | Q24: ='D3 Pivot_Chart Data'!C12 -> 809
O29: 3.1.3
O30: No. of cases | Q30: ='D3 Pivot_Chart Data'!D12 -> 808
A40: Standard 3.2: Planning
O42: Sample sizes
O44: 3.2.1
O45: No. of cases | Q45: ='D3 Pivot_Chart Data'!G12 -> 801
O49: 3.2.2
O50: No. of cases | Q50: ='D3 Pivot_Chart Data'!H12 -> 581
O55: 3.2.3
O56: No. of cases | Q56: ='D3 Pivot_Chart Data'!I12 -> 435
A66: Standard 3.3: Implementation and Delivery
O68: Sample sizes
O70: 3.3.1
O71: No. of cases | Q71: ='D3 Pivot_Chart Data'!L12 -> 793
O75: 3.3.2
O76: No. of cases | Q76: ='D3 Pivot_Chart Data'!M12 -> 579
O81: 3.3.3
O82: No. of cases | Q82: ='D3 Pivot_Chart Data'!N12 -> 432
A92: Standard 3.4: Joint working
O94: Sample sizes
O97: 3.4.1
O98: No. of cases | Q98: ='D3 Pivot_Chart Data'!Q12 -> 755
O105: 3.4.2
O106: No. of cases | Q106: ='D3 Pivot_Chart Data'!R12 -> 542
A121: .

Sheet D2 Pivot_Chart Data (hidden)
B1: Assessment | G1: Planning | L1: Implementation and Delivery | Q1: Reviewing
B3: Chart data/calcs | G3: Chart data/calcs | L3: Chart data/calcs | Q3: Chart data/calcs
B4: A3S positive % | C4: A2S positive % | D4: A1S positive % | G4: P3S positive % | H4: P2S positive % | I4: P1S positive % | L4: D3S positive % | M4: D2S positive % | N4: D1S positive % | Q4: R3S positive % | R4: R2S positive % | S4: R1S positive %
A5: YOT | B5: =GETPIVOTDATA("Sum of 3AS Positive",$B$25)/SUM(F26:G26) -> 0.7181745396 | C5: =GETPIVOTDATA("Sum of 2AS Positive",$B$25)/SUM(D26:E26) -> 0.7537969624 | D5: =GETPIVOTDATA("Sum of 1AS Positive",$B$25)/SUM(B26:C26) -> 0.8474440895 | F5: YOT | G5: =GETPIVOTDATA("Sum of 3PS Positive",$B$25)/SUM(L26:M26) -> 0.6501403181 | H5: =GETPIVOTDATA("Sum of 2PS Positive",$B$25)/SUM(J26:K26) -> 0.6595365419 | I5: =GETPIVOTDATA("Sum of 1PS Positive",$B$25)/SUM(H26:I26) -> 0.810483871 | K5: YOT | L5: =GETPIVOTDATA("Sum of 3DS Positive",$B$25)/SUM(R26:S26) -> 0.6985507246 | M5: =GETPIVOTDATA("Sum of 2DS Positive",$B$25)/SUM(P26:Q26) -> 0.7396883593 | N5: =GETPIVOTDATA("Sum of 1DS Positive",$B$25)/SUM(N26:O26) -> 0.8038237739 | P5: YOT | Q5: =GETPIVOTDATA("Sum of 3RS Positive",$B$25)/SUM(X26:Y26) -> 0.6348387097 | R5: =GETPIVOTDATA("Sum of 2RS Positive",$B$25)/SUM(V26:W26) -> 0.6758241758 | S5: =GETPIVOTDATA("Sum of 1RS Positive",$B$25)/SUM(T26:U26) -> 0.7586484312
B6: Does assessment sufficiently analyse how to keep other people safe? | C6: Does assessment sufficiently analyse how to keep the child or young person safe? | D6: Does assessment sufficiently analyse how to support the child or young person's desistance? | G6: Does planning focus sufficiently on keeping people safe? | H6: Does planning focus sufficiently on keeping the child or young person safe? | I6: Does planning focus sufficiently on supporting the child or young person’s desistance? | L6: Does the implementation and delivery of services effectively support the safety of other people? | M6: Does the implementation and delivery of services effectively support the safety of the child or young person? | N6: Does the implementation and delivery of services effectively support the child or young person’s desistance? | Q6: Does reviewing focus sufficiently on keeping other people safe? | R6: Does reviewing focus sufficiently on keeping the child or young person safe? | S6: Does reviewing focus sufficiently on supporting the child or young person’s desistance?
B10: Assessment Sample size breakdown | G10: Planning Sample size breakdown | L10: Implementation & Delivery Sample size breakdown | Q10: Reviewing Sample size breakdown
B11: A1S | C11: A2S | D11: A3S | G11: P1S | H11: P2S | I11: P3S | L11: D1S | M11: D2S | N11: D3S | Q11: R1S | R11: R2S | S11: R3S
A12: YOT | B12: =SUM(B26:C26) -> 1252 | C12: =SUM(D26:E26) -> 1251 | D12: =SUM(F26:G26) -> 1249 | F12: YOT | G12: =SUM(H26:I26) -> 1240 | H12: =SUM(J26:K26) -> 1122 | I12: =SUM(L26:M26) -> 1069 | K12: YOT | L12: =SUM(N26:O26) -> 1203 | M12: =SUM(P26:Q26) -> 1091 | N12: =SUM(R26:S26) -> 1035 | P12: YOT | Q12: =SUM(T26:U26) -> 1243 | R12: =SUM(V26:W26) -> 910 | S12: =SUM(X26:Y26) -> 775
B17: Age group | C17: (All)
B18: Gender | C18: (All)
B19: Ethnic group | C19: (All)
B20: Supervision Type | C20: (All)
B21: Risk of serious harm | C21: (All)
B22: Safety and well-being classification | C22: (All)
B23: Looked after child | C23: (All)
B25: Sum of 1AS Positive | C25: Sum of 1AS Negative | D25: Sum of 2AS Positive | E25: Sum of 2AS Negative | F25: Sum of 3AS Positive | G25: Sum of 3AS Negative | H25: Sum of 1PS Positive | I25: Sum of 1PS Negative | J25: Sum of 2PS Positive | K25: Sum of 2PS Negative | L25: Sum of 3PS Positive | M25: Sum of 3PS Negative | N25: Sum of 1DS Positive | O25: Sum of 1DS Negative | P25: Sum of 2DS Positive | Q25: Sum of 2DS Negative | R25: Sum of 3DS Positive | S25: Sum of 3DS Negative | T25: Sum of 1RS Positive | U25: Sum of 1RS Negative | V25: Sum of 2RS Positive | W25: Sum of 2RS Negative | X25: Sum of 3RS Positive | Y25: Sum of 3RS Negative
B26: 1061 | C26: 191 | D26: 943 | E26: 308 | F26: 897 | G26: 352 | H26: 1005 | I26: 235 | J26: 740 | K26: 382 | L26: 695 | M26: 374 | N26: 967 | O26: 236 | P26: 807 | Q26: 284 | R26: 723 | S26: 312 | T26: 943 | U26: 300 | V26: 615 | W26: 295 | X26: 492 | Y26: 283

Sheet D2 Data (hidden)
A1: DB_ID | B1: Age group | C1: Gender | D1: Ethnic group | E1: Supervision Type | F1: Risk of serious harm | G1: Safety and well-being classification | H1: Looked after child | I1: 1AS Positive | J1: 1AS Negative | K1: 2AS Positive | L1: 2AS Negative | M1: 3AS Positive | N1: 3AS Negative | O1: 1PS Positive | P1: 1PS Negative | Q1: 2PS Positive | R1: 2PS Negative | S1: 3PS Positive | T1: 3PS Negative | U1: 1DS Positive | V1: 1DS Negative | W1: 2DS Positive | X1: 2DS Negative | Y1: 3DS Positive | Z1: 3DS Negative | AA1: 1RS Positive | AB1: 1RS Negative | AC1: 2RS Positive | AD1: 2RS Negative | AE1: 3RS Positive | AF1: 3RS Negative | AG1: Year
A2: 10945 | B2: 15-16 | C2: Male | D2: White | E2: Referral order | F2: Medium | G2: Medium | H2: No | I2: 1 | L2: 1 | M2: 1 | O2: 1 | Q2: 1 | S2: 1 | U2: 1 | W2: 1 | Y2: 1 | AA2: 1 | AC2: 1 | AG2: 1
A3: 11128 | B3: 15-16 | C3: Male | D3: Mixed | E3: Referral order | F3: Low | G3: Medium | H3: No | I3: 1 | K3: 1 | M3: 1 | O3: 1 | Q3: 1 | U3: 1 | W3: 1 | AA3: 1 | AC3: 1 | AG3: 1
A4: 11103 | B4: 10-14 | C4: Male | D4: White | E4: Referral order | F4: Low | G4: Low | H4: No | I4: 1 | L4: 1 | M4: 1 | O4: 1 | Q4: 1 | U4: 1 | W4: 1 | AB4: 1 | AD4: 1 | AF4: 1 | AG4: 1
A5: 11115 | B5: 10-14 | C5: Male | D5: White | E5: Referral order | F5: Medium | G5: Medium | H5: No | I5: 1 | K5: 1 | M5: 1 | O5: 1 | Q5: 1 | S5: 1 | U5: 1 | W5: 1 | Y5: 1 | AA5: 1 | AC5: 1 | AE5: 1 | AG5: 1
A6: 11105 | B6: 17+ | C6: Female | D6: White | E6: Referral order | F6: (Very) High | G6: Medium | H6: No | I6: 1 | K6: 1 | M6: 1 | O6: 1 | Q6: 1 | T6: 1 | U6: 1 | W6: 1 | Z6: 1 | AA6: 1 | AC6: 1 | AF6: 1 | AG6: 1
A7: 11066 | B7: 17+ | C7: Male | D7: White | E7: Referral order | F7: Low | G7: Medium | H7: No | I7: 1 | K7: 1 | M7: 1 | O7: 1 | Q7: 1 | U7: 1 | W7: 1 | AA7: 1 | AG7: 1
A8: 11104 | B8: 15-16 | C8: Male | D8: Mixed | E8: Referral order | F8: Medium | G8: Medium | H8: No | J8: 1 | L8: 1 | N8: 1 | O8: 1 | Q8: 1 | S8: 1 | U8: 1 | W8: 1 | Y8: 1 | AA8: 1 | AC8: 1 | AE8: 1 | AG8: 1
A9: 10959 | B9: 15-16 | C9: Male | D9: White | E9: Referral order | F9: Medium | G9: (Very) High | H9: No | I9: 1 | K9: 1 | N9: 1 | O9: 1 | Q9: 1 | S9: 1 | V9: 1 | X9: 1 | Z9: 1 | AB9: 1 | AD9: 1 | AF9: 1 | AG9: 1
A10: 10947 | B10: 10-14 | C10: Male | D10: Mixed | E10: Referral order | F10: Medium | G10: (Very) High | H10: No | I10: 1 | K10: 1 | M10: 1 | O10: 1 | Q10: 1 | S10: 1 | U10: 1 | W10: 1 | Y10: 1 | AA10: 1 | AC10: 1 | AE10: 1 | AG10: 1
A11: 10946 | B11: 15-16 | C11: Male | D11: White | E11: Referral order | F11: Medium | G11: (Very) High | H11: Yes | J11: 1 | L11: 1 | N11: 1 | P11: 1 | R11: 1 | T11: 1 | U11: 1 | W11: 1 | Z11: 1 | AA11: 1 | AD11: 1 | AF11: 1 | AG11: 1
A12: 11068 | B12: 10-14 | C12: Male | D12: Mixed | E12: Referral order | F12: Medium | G12: Medium | I12: 1 | K12: 1 | M12: 1 | O12: 1 | Q12: 1 | S12: 1 | U12: 1 | W12: 1 | Y12: 1 | AA12: 1 | AC12: 1 | AE12: 1 | AG12: 1
A13: 11107 | B13: 15-16 | C13: Female | D13: White | E13: Referral order | F13: Low | G13: (Very) High | H13: No | J13: 1 | L13: 1 | N13: 1 | P13: 1 | Q13: 1 | T13: 1 | U13: 1 | W13: 1 | Z13: 1 | AA13: 1 | AC13: 1 | AF13: 1 | AG13: 1
A14: 11067 | B14: 15-16 | C14: Male | D14: White | E14: Referral order | F14: Low | G14: Low | H14: No | J14: 1 | L14: 1 | N14: 1 | O14: 1 | R14: 1 | T14: 1 | V14: 1 | X14: 1 | Z14: 1 | AA14: 1 | AD14: 1 | AG14: 1
A15: 11034 | B15: 17+ | C15: Male | D15: White | E15: Referral order | F15: Low | G15: Low | H15: No | I15: 1 | L15: 1 | M15: 1 | O15: 1 | R15: 1 | V15: 1 | X15: 1 | AB15: 1 | AD15: 1 | AG15: 1
A16: 10949 | B16: 15-16 | C16: Male | D16: White | E16: Referral order | F16: Medium | G16: Medium | H16: No | I16: 1 | K16: 1 | M16: 1 | P16: 1 | R16: 1 | T16: 1 | V16: 1 | X16: 1 | Z16: 1 | AA16: 1 | AC16: 1 | AE16: 1 | AG16: 1
A17: 10948 | B17: 15-16 | C17: Male | D17: White | E17: Referral order | F17: Medium | G17: Low | H17: No | J17: 1 | L17: 1 | N17: 1 | P17: 1 | R17: 1 | T17: 1 | U17: 1 | X17: 1 | Z17: 1 | AA17: 1 | AD17: 1 | AF17: 1 | AG17: 1
A18: 10950 | B18: 17+ | C18: Male | D18: White | E18: Referral order | F18: Medium | G18: Low | H18: No | I18: 1 | K18: 1 | M18: 1 | O18: 1 | S18: 1 | U18: 1 | Y18: 1 | AA18: 1 | AG18: 1
A19: 11036 | B19: 15-16 | C19: Male | D19: White | E19: Referral order | F19: Low | G19: Medium | I19: 1 | K19: 1 | M19: 1 | O19: 1 | Q19: 1 | U19: 1 | W19: 1 | AA19: 1 | AG19: 1
A20: 11114 | B20: 15-16 | C20: Male | D20: Mixed | E20: Youth rehabilitation order | F20: Medium | G20: (Very) High | I20: 1 | K20: 1 | N20: 1 | O20: 1 | R20: 1 | T20: 1 | U20: 1 | W20: 1 | Y20: 1 | AA20: 1 | AG20: 1
A21: 10952 | B21: 10-14 | C21: Male | D21: Mixed | E21: Youth rehabilitation order | F21: Low | G21: Low | H21: No | J21: 1 | K21: 1 | N21: 1 | O21: 1 | T21: 1 | U21: 1 | Y21: 1 | AA21: 1 | AG21: 1
A22: 11106 | B22: 15-16 | C22: Male | D22: White | E22: Youth rehabilitation order | F22: Low | G22: Medium | H22: No | I22: 1 | K22: 1 | M22: 1 | O22: 1 | Q22: 1 | U22: 1 | W22: 1 | AA22: 1 | AG22: 1
A23: 11035 | B23: 15-16 | C23: Male | D23: White | E23: Youth rehabilitation order | F23: Medium | G23: Medium | H23: No | I23: 1 | K23: 1 | M23: 1 | O23: 1 | Q23: 1 | S23: 1 | U23: 1 | W23: 1 | Y23: 1 | AA23: 1 | AC23: 1 | AE23: 1 | AG23: 1
A24: 10951 | B24: 15-16 | C24: Male | D24: White | E24: Youth rehabilitation order | F24: Medium | G24: Medium | H24: No | I24: 1 | K24: 1 | M24: 1 | O24: 1 | Q24: 1 | S24: 1 | U24: 1 | W24: 1 | Y24: 1 | AA24: 1 | AC24: 1 | AE24: 1 | AG24: 1
A25: 10954 | B25: 15-16 | C25: Male | D25: White | E25: Youth rehabilitation order | F25: Medium | G25: Medium | H25: No | I25: 1 | K25: 1 | M25: 1 | O25: 1 | Q25: 1 | S25: 1 | U25: 1 | W25: 1 | Y25: 1 | AA25: 1 | AC25: 1 | AE25: 1 | AG25: 1
A26: 11108 | B26: 10-14 | C26: Male | E26: Youth rehabilitation order | F26: Medium | G26: Medium | H26: No | I26: 1 | K26: 1 | M26: 1 | P26: 1 | Q26: 1 | S26: 1 | U26: 1 | W26: 1 | Y26: 1 | AA26: 1 | AC26: 1 | AE26: 1 | AG26: 1
A27: 11038 | B27: 17+ | C27: Male | D27: White | E27: Youth rehabilitation order | F27: Low | G27: Medium | H27: No | J27: 1 | K27: 1 | M27: 1 | O27: 1 | Q27: 1 | U27: 1 | W27: 1 | AA27: 1 | AC27: 1 | AG27: 1
A28: 11085 | B28: 17+ | C28: Female | D28: White | E28: Youth rehabilitation order | F28: Medium | G28: (Very) High | H28: No | I28: 1 | K28: 1 | M28: 1 | O28: 1 | R28: 1 | S28: 1 | U28: 1 | X28: 1 | Y28: 1 | AA28: 1 | AD28: 1 | AE28: 1 | AG28: 1
A29: 11130 | B29: 17+ | C29: Male | D29: White | E29: Custody | F29: (Very) High | G29: Medium | H29: Yes | I29: 1 | K29: 1 | N29: 1 | O29: 1 | R29: 1 | T29: 1 | U29: 1 | W29: 1 | Z29: 1 | AB29: 1 | AC29: 1 | AF29: 1 | AG29: 1
A30: 10953 | B30: 15-16 | C30: Male | D30: White | E30: Custody | F30: Medium | G30: Medium | H30: Yes | I30: 1 | L30: 1 | M30: 1 | O30: 1 | R30: 1 | S30: 1 | U30: 1 | X30: 1 | Y30: 1 | AA30: 1 | AD30: 1 | AG30: 1
A31: 11037 | B31: 17+ | C31: Male | D31: White | E31: Custody | F31: Medium | G31: Medium | H31: No | I31: 1 | K31: 1 | M31: 1 | O31: 1 | Q31: 1 | S31: 1 | U31: 1 | W31: 1 | Y31: 1 | AA31: 1 | AC31: 1 | AE31: 1 | AG31: 1
A32: 11295 | B32: 15-16 | C32: Male | D32: White | E32: Referral order | F32: Low | G32: Medium | H32: Yes | I32: 1 | L32: 1 | M32: 1 | O32: 1 | R32: 1 | V32: 1 | X32: 1 | AA32: 1 | AC32: 1 | AE32: 1 | AG32: 1
A33: 11146 | B33: 17+ | C33: Male | D33: White | E33: Referral order | F33: Low | G33: Low | H33: No | J33: 1 | L33: 1 | N33: 1 | P33: 1 | R33: 1 | T33: 1 | V33: 1 | X33: 1 | Z33: 1 | AB33: 1 | AD33: 1 | AF33: 1 | AG33: 1
A34: 11278 | B34: 10-14 | C34: Female | D34: White | E34: Referral order | F34: Low | G34: Medium | H34: No | I34: 1 | K34: 1 | M34: 1 | O34: 1 | Q34: 1 | U34: 1 | W34: 1 | AA34: 1 | AC34: 1 | AG34: 1
A35: 11297 | B35: 17+ | C35: Female | D35: White | E35: Referral order | F35: Low | G35: Low | H35: No | I35: 1 | K35: 1 | M35: 1 | O35: 1 | U35: 1 | AA35: 1 | AG35: 1
A36: 11211 | B36: 10-14 | C36: Male | D36: White | E36: Referral order | F36: Low | G36: Medium | H36: No | I36: 1 | K36: 1 | M36: 1 | O36: 1 | Q36: 1 | T36: 1 | U36: 1 | W36: 1 | Z36: 1 | AB36: 1 | AD36: 1 | AF36: 1 | AG36: 1
A37: 11296 | B37: 15-16 | C37: Male | D37: White | E37: Referral order | F37: Medium | G37: (Very) High | H37: No | I37: 1 | K37: 1 | M37: 1 | O37: 1 | Q37: 1 | S37: 1 | U37: 1 | W37: 1 | Y37: 1 | AA37: 1 | AC37: 1 | AE37: 1 | AG37: 1
A38: 11148 | B38: 15-16 | C38: Male | D38: White | E38: Referral order | F38: Medium | G38: Medium | H38: No | I38: 1 | K38: 1 | M38: 1 | O38: 1 | Q38: 1 | S38: 1 | U38: 1 | W38: 1 | Y38: 1 | AA38: 1 | AC38: 1 | AE38: 1 | AG38: 1
A39: 11299 | B39: 15-16 | C39: Male | D39: White | E39: Referral order | F39: Low | G39: Medium | H39: No | I39: 1 | K39: 1 | N39: 1 | O39: 1 | Q39: 1 | S39: 1 | U39: 1 | W39: 1 | Y39: 1 | AB39: 1 | AD39: 1 | AF39: 1 | AG39: 1
A40: 11312 | B40: 15-16 | C40: Male | D40: Mixed | E40: Referral order | F40: Medium | G40: (Very) High | H40: No | I40: 1 | K40: 1 | M40: 1 | O40: 1 | Q40: 1 | S40: 1 | U40: 1 | W40: 1 | Z40: 1 | AA40: 1 | AC40: 1 | AE40: 1 | AG40: 1
A41: 11212 | B41: 17+ | C41: Male | D41: White | E41: Referral order | F41: Medium | G41: Low | H41: No | I41: 1 | K41: 1 | M41: 1 | O41: 1 | U41: 1 | AA41: 1 | AG41: 1
A42: 11162 | B42: 17+ | C42: Male | D42: White | E42: Referral order | F42: Medium | G42: Medium | H42: No | I42: 1 | L42: 1 | M42: 1 | O42: 1 | Q42: 1 | S42: 1 | U42: 1 | W42: 1 | Y42: 1 | AA42: 1 | AC42: 1 | AE42: 1 | AG42: 1
A43: 11207 | B43: 15-16 | C43: Male | D43: Asian | E43: Referral order | F43: Low | G43: Low | H43: No | I43: 1 | K43: 1 | M43: 1 | P43: 1 | U43: 1 | AA43: 1 | AC43: 1 | AE43: 1 | AG43: 1
A44: 11203 | B44: 17+ | C44: Male | D44: White | E44: Referral order | F44: Low | G44: Low | H44: No | I44: 1 | K44: 1 | M44: 1 | O44: 1 | U44: 1 | AA44: 1 | AG44: 1
A45: 11164 | B45: 17+ | C45: Male | D45: White | E45: Referral order | F45: Low | G45: Low | H45: No | I45: 1 | K45: 1 | M45: 1 | O45: 1 | U45: 1 | AB45: 1 | AG45: 1
A46: 11202 | B46: 17+ | C46: Male | D46: White | E46: Referral order | F46: Low | G46: Medium | H46: No | I46: 1 | K46: 1 | M46: 1 | O46: 1 | R46: 1 | T46: 1 | U46: 1 | W46: 1 | Z46: 1 | AB46: 1 | AD46: 1 | AF46: 1 | AG46: 1
A47: 11163 | B47: 10-14 | C47: Male | D47: White | E47: Referral order | F47: Low | G47: Low | H47: No | I47: 1 | L47: 1 | N47: 1 | O47: 1 | R47: 1 | S47: 1 | U47: 1 | W47: 1 | Y47: 1 | AA47: 1 | AD47: 1 | AE47: 1 | AG47: 1
A48: 11205 | B48: 15-16 | C48: Male | D48: White | E48: Referral order | F48: Medium | G48: (Very) High | H48: Yes | I48: 1 | K48: 1 | M48: 1 | P48: 1 | R48: 1 | T48: 1 | V48: 1 | X48: 1 | Z48: 1 | AA48: 1 | AD48: 1 | AF48: 1 | AG48: 1
A49: 11209 | E49: Referral order | F49: Medium | G49: Medium | H49: No | I49: 1 | K49: 1 | M49: 1 | O49: 1 | Q49: 1 | S49: 1 | U49: 1 | X49: 1 | Y49: 1 | AA49: 1 | AC49: 1 | AE49: 1 | AG49: 1
A50: 11147 | B50: 15-16 | C50: Male | D50: White | E50: Referral order | F50: Medium | G50: Low | H50: No | I50: 1 | K50: 1 | M50: 1 | O50: 1 | S50: 1 | U50: 1 | Y50: 1 | AA50: 1 | AC50: 1 | AE50: 1 | AG50: 1
A51: 11298 | B51: 17+ | C51: Male | D51: Black | E51: Referral order | F51: Medium | G51: Medium | H51: No | I51: 1 | K51: 1 | M51: 1 | P51: 1 | R51: 1 | S51: 1 | U51: 1 | X51: 1 | Y51: 1 | AA51: 1 | AD51: 1 | AE51: 1 | AG51: 1
A52: 11218 | B52: 17+ | C52: Male | D52: White | E52: Referral order | F52: Low | G52: (Very) High | H52: Yes | I52: 1 | K52: 1 | N52: 1 | O52: 1 | R52: 1 | T52: 1 | U52: 1 | W52: 1 | Z52: 1 | AA52: 1 | AC52: 1 | AF52: 1 | AG52: 1
A53: 11208 | B53: 15-16 | C53: Male | D53: White | E53: Youth rehabilitation order | F53: Medium | G53: (Very) High | H53: Yes | I53: 1 | K53: 1 | M53: 1 | O53: 1 | Q53: 1 | S53: 1 | U53: 1 | W53: 1 | Y53: 1 | AA53: 1 | AC53: 1 | AE53: 1 | AG53: 1
A54: 11300 | B54: 15-16 | C54: Male | D54: White | E54: Youth rehabilitation order | F54: Low | G54: Medium | H54: Yes | J54: 1 | L54: 1 | N54: 1 | P54: 1 | R54: 1 | T54: 1 | V54: 1 | X54: 1 | Z54: 1 | AB54: 1 | AD54: 1 | AF54: 1 | AG54: 1
A55: 11313 | B55: 15-16 | C55: Male | D55: White | E55: Youth rehabilitation order | F55: (Very) High | G55: Medium | H55: No | I55: 1 | K55: 1 | M55: 1 | P55: 1 | R55: 1 | T55: 1 | V55: 1 | X55: 1 | Z55: 1 | AB55: 1 | AD55: 1 | AF55: 1 | AG55: 1
A56: 11280 | B56: 17+ | C56: Male | D56: White | E56: Youth rehabilitation order | F56: Low | G56: Medium | H56: No | I56: 1 | K56: 1 | M56: 1 | O56: 1 | Q56: 1 | S56: 1 | U56: 1 | W56: 1 | Y56: 1 | AA56: 1 | AC56: 1 | AE56: 1 | AG56: 1
A57: 11302 | B57: 10-14 | C57: Male | D57: White | E57: Youth rehabilitation order | F57: Medium | G57: Medium | H57: No | I57: 1 | K57: 1 | M57: 1 | O57: 1 | Q57: 1 | S57: 1 | U57: 1 | W57: 1 | Y57: 1 | AA57: 1 | AE57: 1 | AG57: 1
A58: 11307 | B58: 15-16 | C58: Male | D58: Asian | E58: Youth rehabilitation order | F58: (Very) High | G58: (Very) High | H58: No | I58: 1 | K58: 1 | M58: 1 | P58: 1 | Q58: 1 | S58: 1 | U58: 1 | W58: 1 | Y58: 1 | AA58: 1 | AC58: 1 | AE58: 1 | AG58: 1
A59: 11166 | B59: 17+ | C59: Male | D59: White | E59: Youth rehabilitation order | F59: Medium | G59: (Very) High | H59: Yes | J59: 1 | L59: 1 | N59: 1 | P59: 1 | R59: 1 | T59: 1 | V59: 1 | X59: 1 | Z59: 1 | AB59: 1 | AD59: 1 | AF59: 1 | AG59: 1
A60: 11210 | B60: 17+ | C60: Male | D60: White | E60: Custody | F60: Medium | G60: Medium | H60: No | I60: 1 | K60: 1 | N60: 1 | O60: 1 | Q60: 1 | T60: 1 | U60: 1 | W60: 1 | Z60: 1 | AA60: 1 | AC60: 1 | AE60: 1 | AG60: 1
A61: 11174 | B61: 17+ | C61: Male | D61: White | E61: Referral order | F61: Low | G61: Medium | H61: Yes | I61: 1 | K61: 1 | M61: 1 | P61: 1 | Q61: 1 | U61: 1 | W61: 1 | AA61: 1 | AD61: 1 | AG61: 1
A62: 11767 | B62: 17+ | C62: Female | D62: White | E62: Referral order | F62: Medium | G62: (Very) High | H62: No | I62: 1 | K62: 1 | M62: 1 | O62: 1 | Q62: 1 | S62: 1 | U62: 1 | W62: 1 | Y62: 1 | AA62: 1 | AC62: 1 | AG62: 1
A63: 11936 | B63: 17+ | C63: Male | D63: White | E63: Referral order | F63: (Very) High | G63: (Very) High | H63: No | I63: 1 | K63: 1 | M63: 1 | O63: 1 | Q63: 1 | S63: 1 | U63: 1 | W63: 1 | Y63: 1 | AA63: 1 | AC63: 1 | AE63: 1 | AG63: 1
A64: 11808 | B64: 17+ | C64: Male | D64: White | E64: Referral order | F64: Low | G64: Low | H64: No | I64: 1 | K64: 1 | M64: 1 | O64: 1 | U64: 1 | AA64: 1 | AG64: 1
A65: 11780 | B65: 17+ | C65: Male | D65: Black | E65: Referral order | F65: Low | G65: Low | H65: No | I65: 1 | K65: 1 | N65: 1 | O65: 1 | Q65: 1 | S65: 1 | U65: 1 | W65: 1 | Y65: 1 | AA65: 1 | AC65: 1 | AE65: 1 | AG65: 1
A66: 11952 | B66: 15-16 | C66: Male | D66: White | E66: Referral order | F66: Medium | G66: Medium | H66: No | I66: 1 | K66: 1 | M66: 1 | O66: 1 | Q66: 1 | S66: 1 | U66: 1 | W66: 1 | Y66: 1 | AA66: 1 | AG66: 1
A67: 11861 | B67: 17+ | C67: Male | D67: Mixed | E67: Referral order | F67: Low | G67: Low | H67: No | I67: 1 | K67: 1 | M67: 1 | O67: 1 | U67: 1 | AA67: 1 | AC67: 1 | AE67: 1 | AG67: 1
A68: 11742 | B68: 17+ | C68: Male | D68: White | E68: Referral order | F68: Medium | G68: Medium | H68: No | I68: 1 | K68: 1 | M68: 1 | O68: 1 | Q68: 1 | S68: 1 | U68: 1 | W68: 1 | Y68: 1 | AA68: 1 | AG68: 1
A69: 11914 | B69: 10-14 | C69: Female | D69: White | E69: Referral order | F69: Low | G69: Low | H69: Yes | I69: 1 | K69: 1 | N69: 1 | O69: 1 | Q69: 1 | S69: 1 | U69: 1 | W69: 1 | Y69: 1 | AB69: 1 | AD69: 1 | AF69: 1 | AG69: 1
A70: 11927 | B70: 17+ | C70: Male | D70: White | E70: Referral order | F70: (Very) High | G70: Medium | H70: No | I70: 1 | K70: 1 | M70: 1 | O70: 1 | Q70: 1 | S70: 1 | U70: 1 | W70: 1 | Y70: 1 | AA70: 1 | AC70: 1 | AE70: 1 | AG70: 1
A71: 11769 | B71: 17+ | C71: Male | D71: White | E71: Referral order | F71: Low | G71: Low | H71: No | I71: 1 | K71: 1 | M71: 1 | O71: 1 | U71: 1 | AA71: 1 | AG71: 1
A72: 11768 | B72: 15-16 | C72: Male | D72: White | E72: Referral order | F72: (Very) High | G72: Medium | H72: No | I72: 1 | K72: 1 | M72: 1 | O72: 1 | Q72: 1 | S72: 1 | V72: 1 | W72: 1 | Y72: 1 | AB72: 1 | AC72: 1 | AE72: 1 | AG72: 1
A73: 11745 | B73: 15-16 | C73: Male | D73: White | E73: Referral order | F73: Low | G73: Medium | H73: No | I73: 1 | K73: 1 | M73: 1 | O73: 1 | Q73: 1 | U73: 1 | W73: 1 | AA73: 1 | AC73: 1 | AG73: 1
A74: 11950 | B74: 17+ | C74: Male | D74: White | E74: Referral order | F74: Medium | G74: Medium | H74: Yes | I74: 1 | K74: 1 | M74: 1 | P74: 1 | Q74: 1 | T74: 1 | U74: 1 | W74: 1 | Y74: 1 | AA74: 1 | AC74: 1 | AE74: 1 | AG74: 1
A75: 11830 | B75: 15-16 | C75: Male | D75: White | E75: Referral order | F75: Low | G75: Low | H75: No | I75: 1 | K75: 1 | N75: 1 | O75: 1 | U75: 1 | AA75: 1 | AC75: 1 | AG75: 1
A76: 11771 | B76: 15-16 | C76: Female | D76: White | E76: Referral order | F76: Low | G76: Low | H76: No | I76: 1 | K76: 1 | M76: 1 | O76: 1 | U76: 1 | AA76: 1 | AG76: 1
A77: 11770 | B77: 17+ | C77: Male | D77: Black | E77: Referral order | F77: Medium | G77: Medium | H77: No | I77: 1 | K77: 1 | M77: 1 | O77: 1 | Q77: 1 | S77: 1 | U77: 1 | W77: 1 | Y77: 1 | AA77: 1 | AC77: 1 | AG77: 1
A78: 11913 | B78: 17+ | C78: Female | D78: White | E78: Referral order | F78: Low | G78: Low | H78: Yes | I78: 1 | L78: 1 | N78: 1 | AB78: 1 | AD78: 1 | AF78: 1 | AG78: 1
A79: 11826 | B79: 10-14 | C79: Male | D79: White | E79: Referral order | F79: Medium | G79: Medium | H79: No | I79: 1 | K79: 1 | M79: 1 | O79: 1 | Q79: 1 | U79: 1 | W79: 1 | AA79: 1 | AC79: 1 | AE79: 1 | AG79: 1
A80: 11782 | B80: 17+ | C80: Male | D80: White | E80: Referral order | F80: Low | G80: (Very) High | I80: 1 | K80: 1 | M80: 1 | O80: 1 | Q80: 1 | U80: 1 | W80: 1 | AA80: 1 | AC80: 1 | AE80: 1 | AG80: 1
A81: 11984 | B81: 17+ | C81: Male | D81: Black | E81: Referral order | F81: (Very) High | G81: (Very) High | H81: No | I81: 1 | K81: 1 | M81: 1 | O81: 1 | Q81: 1 | S81: 1 | U81: 1 | W81: 1 | Y81: 1 | AA81: 1 | AC81: 1 | AE81: 1 | AG81: 1
A82: 11746 | B82: 17+ | C82: Male | D82: White | E82: Referral order | F82: Low | G82: Low | H82: No | I82: 1 | K82: 1 | M82: 1 | O82: 1 | U82: 1 | AA82: 1 | AC82: 1 | AE82: 1 | AG82: 1
A83: 11810 | B83: 17+ | C83: Male | D83: White | E83: Referral order | F83: (Very) High | G83: (Very) High | H83: No | I83: 1 | K83: 1 | M83: 1 | O83: 1 | Q83: 1 | S83: 1 | U83: 1 | W83: 1 | Y83: 1 | AA83: 1 | AC83: 1 | AE83: 1 | AG83: 1
A84: 11822 | B84: 17+ | C84: Male | D84: White | E84: Referral order | F84: Medium | G84: Medium | H84: No | I84: 1 | K84: 1 | M84: 1 | O84: 1 | Q84: 1 | S84: 1 | U84: 1 | W84: 1 | Y84: 1 | AA84: 1 | AC84: 1 | AE84: 1 | AG84: 1
A85: 11938 | B85: 15-16 | C85: Male | D85: White | E85: Referral order | F85: (Very) High | G85: Medium | H85: No | I85: 1 | K85: 1 | M85: 1 | O85: 1 | Q85: 1 | S85: 1 | U85: 1 | W85: 1 | Y85: 1 | AA85: 1 | AC85: 1 | AE85: 1 | AG85: 1
A86: 11783 | B86: 17+ | C86: Male | D86: Other | E86: Referral order | F86: Low | G86: Low | H86: No | I86: 1 | L86: 1 | N86: 1 | O86: 1 | R86: 1 | U86: 1 | W86: 1 | AA86: 1 | AC86: 1 | AE86: 1 | AG86: 1
A87: 11825 | B87: 17+ | C87: Male | D87: Black | E87: Referral order | F87: Medium | G87: (Very) High | H87: No | I87: 1 | K87: 1 | M87: 1 | O87: 1 | Q87: 1 | S87: 1 | U87: 1 | W87: 1 | Y87: 1 | AA87: 1 | AC87: 1 | AG87: 1
A88: 11916 | B88: 17+ | C88: Male | D88: White | E88: Referral order | F88: Low | G88: Low | H88: No | I88: 1 | K88: 1 | M88: 1 | O88: 1 | AA88: 1 | AG88: 1
A89: 11915 | B89: 17+ | C89: Male | D89: White | E89: Referral order | F89: Medium | G89: Low | H89: No | I89: 1 | K89: 1 | M89: 1 | O89: 1 | S89: 1 | U89: 1 | Y89: 1 | AA89: 1 | AE89: 1 | AG89: 1
A90: 11942 | B90: 15-16 | C90: Male | D90: Black | E90: Referral order | F90: Medium | G90: Low | H90: No | I90: 1 | K90: 1 | N90: 1 | P90: 1 | Q90: 1 | T90: 1 | V90: 1 | W90: 1 | Z90: 1 | AA90: 1 | AC90: 1 | AE90: 1 | AG90: 1
A91: 11772 | B91: 15-16 | C91: Male | D91: Black | E91: Referral order | F91: Low | G91: Low | H91: No | I91: 1 | K91: 1 | M91: 1 | O91: 1 | Q91: 1 | S91: 1 | U91: 1 | W91: 1 | Y91: 1 | AA91: 1 | AC91: 1 | AE91: 1 | AG91: 1
A92: 11866 | B92: 15-16 | C92: Female | D92: White | E92: Referral order | F92: Low | G92: Medium | H92: No | I92: 1 | K92: 1 | M92: 1 | O92: 1 | Q92: 1 | U92: 1 | W92: 1 | AA92: 1 | AC92: 1 | AG92: 1
A93: 11923 | B93: 10-14 | C93: Male | D93: White | E93: Referral order | F93: Medium | G93: Low | H93: Yes | I93: 1 | K93: 1 | M93: 1 | O93: 1 | Q93: 1 | S93: 1 | U93: 1 | W93: 1 | Y93: 1 | AA93: 1 | AC93: 1 | AG93: 1
A94: 11809 | B94: 15-16 | C94: Female | D94: White | E94: Referral order | F94: Medium | G94: Medium | H94: No | I94: 1 | K94: 1 | M94: 1 | O94: 1 | Q94: 1 | S94: 1 | U94: 1 | W94: 1 | Y94: 1 | AA94: 1 | AC94: 1 | AG94: 1
A95: 11917 | B95: 15-16 | C95: Male | D95: Mixed | E95: Referral order | F95: (Very) High | G95: Medium | H95: No | I95: 1 | K95: 1 | M95: 1 | O95: 1 | Q95: 1 | S95: 1 | U95: 1 | W95: 1 | Y95: 1 | AA95: 1 | AE95: 1 | AG95: 1
A96: 11744 | B96: 17+ | C96: Male | D96: White | E96: Referral order | F96: Low | G96: Low | H96: No | I96: 1 | K96: 1 | M96: 1 | O96: 1 | U96: 1 | AA96: 1 | AG96: 1
A97: 11937 | B97: 17+ | C97: Male | D97: White | E97: Youth rehabilitation order | F97: Medium | G97: (Very) High | H97: No | I97: 1 | K97: 1 | M97: 1 | O97: 1 | Q97: 1 | S97: 1 | U97: 1 | W97: 1 | Y97: 1 | AA97: 1 | AC97: 1 | AG97: 1
A98: 11946 | B98: 17+ | C98: Male | D98: White | E98: Youth rehabilitation order | F98: Medium | G98: Medium | H98: No | I98: 1 | K98: 1 | M98: 1 | O98: 1 | Q98: 1 | T98: 1 | U98: 1 | W98: 1 | Y98: 1 | AA98: 1 | AC98: 1 | AE98: 1 | AG98: 1
A99: 11811 | B99: 17+ | C99: Male | D99: White | E99: Youth rehabilitation order | F99: Medium | G99: Medium | I99: 1 | K99: 1 | M99: 1 | O99: 1 | Q99: 1 | S99: 1 | U99: 1 | W99: 1 | Y99: 1 | AA99: 1 | AC99: 1 | AE99: 1 | AG99: 1
A100: 11774 | B100: 17+ | C100: Female | D100: White | E100: Youth rehabilitation order | F100: Medium | G100: (Very) High | H100: No | I100: 1 | K100: 1 | M100: 1 | O100: 1 | Q100: 1 | S100: 1 | U100: 1 | W100: 1 | Y100: 1 | AA100: 1 | AC100: 1 | AG100: 1
A101: 11860 | B101: 15-16 | C101: Male | D101: White | E101: Youth rehabilitation order | F101: Medium | G101: Medium | H101: No | I101: 1 | K101: 1 | M101: 1 | O101: 1 | Q101: 1 | S101: 1 | U101: 1 | W101: 1 | Y101: 1 | AA101: 1 | AG101: 1
A102: 11784 | B102: 17+ | C102: Male | D102: White | E102: Youth rehabilitation order | F102: Low | G102: Low | H102: No | I102: 1 | K102: 1 | M102: 1 | O102: 1 | U102: 1 | AA102: 1 | AC102: 1 | AE102: 1 | AG102: 1
A103: 11940 | B103: 15-16 | C103: Male | D103: White | E103: Youth rehabilitation order | F103: (Very) High | G103: (Very) High | H103: No | I103: 1 | K103: 1 | M103: 1 | O103: 1 | Q103: 1 | S103: 1 | U103: 1 | W103: 1 | Y103: 1 | AA103: 1 | AC103: 1 | AE103: 1 | AG103: 1
A104: 11863 | B104: 15-16 | C104: Male | D104: White | E104: Youth rehabilitation order | F104: Medium | G104: (Very) High | H104: Yes | I104: 1 | K104: 1 | M104: 1 | O104: 1 | Q104: 1 | S104: 1 | V104: 1 | W104: 1 | Y104: 1 | AA104: 1 | AC104: 1 | AE104: 1 | AG104: 1
A105: 11786 | B105: 15-16 | C105: Male | D105: White | E105: Youth rehabilitation order | F105: Low | G105: Medium | H105: No | J105: 1 | K105: 1 | N105: 1 | O105: 1 | Q105: 1 | U105: 1 | W105: 1 | AA105: 1 | AC105: 1 | AE105: 1 | AG105: 1
A106: 11773 | B106: 17+ | C106: Male | D106: White | E106: Youth rehabilitation order | F106: Medium | G106: (Very) High | I106: 1 | K106: 1 | M106: 1 | O106: 1 | Q106: 1 | U106: 1 | W106: 1 | Y106: 1 | AA106: 1 | AC106: 1 | AE106: 1 | AG106: 1
A107: 11869 | B107: 17+ | C107: Male | D107: Asian | E107: Youth rehabilitation order | F107: Medium | G107: (Very) High | H107: No | J107: 1 | K107: 1 | N107: 1 | P107: 1 | R107: 1 | T107: 1 | U107: 1 | W107: 1 | Y107: 1 | AB107: 1 | AC107: 1 | AE107: 1 | AG107: 1
A108: 11865 | B108: 17+ | C108: Male | D108: Mixed | E108: Youth rehabilitation order | F108: Medium | G108: Medium | I108: 1 | K108: 1 | M108: 1 | O108: 1 | Q108: 1 | S108: 1 | U108: 1 | W108: 1 | Y108: 1 | AA108: 1 | AC108: 1 | AE108: 1 | AG108: 1
A109: 11926 | B109: 17+ | C109: Male | D109: Asian | E109: Custody | F109: (Very) High | G109: (Very) High | H109: No | I109: 1 | K109: 1 | M109: 1 | O109: 1 | Q109: 1 | S109: 1 | U109: 1 | W109: 1 | Y109: 1 | AA109: 1 | AC109: 1 | AE109: 1 | AG109: 1
A110: 11813 | B110: 17+ | C110: Male | E110: Custody | F110: Medium | G110: Medium | H110: No | I110: 1 | K110: 1 | M110: 1 | O110: 1 | Q110: 1 | S110: 1 | U110: 1 | W110: 1 | Y110: 1 | AA110: 1 | AC110: 1 | AE110: 1 | AG110: 1
A111: 11919 | B111: 17+ | C111: Male | D111: White | E111: Custody | F111: Medium | G111: Medium | I111: 1 | K111: 1 | M111: 1 | O111: 1 | Q111: 1 | S111: 1 | U111: 1 | W111: 1 | Y111: 1 | AA111: 1 | AG111: 1
A112: 11939 | B112: 15-16 | C112: Male | D112: White | E112: Custody | F112: Medium | G112: (Very) High | H112: No | I112: 1 | K112: 1 | M112: 1 | O112: 1 | Q112: 1 | S112: 1 | U112: 1 | W112: 1 | Y112: 1 | AA112: 1 | AC112: 1 | AE112: 1 | AG112: 1
A113: 11743 | B113: 17+ | C113: Male | D113: Black | E113: Referral order | F113: Medium | G113: Medium | H113: No | I113: 1 | L113: 1 | N113: 1 | O113: 1 | R113: 1 | T113: 1 | U113: 1 | X113: 1 | Y113: 1 | AB113: 1 | AF113: 1 | AG113: 1
A114: 11781 | B114: 15-16 | C114: Male | D114: Black | E114: Youth rehabilitation order | F114: Medium | G114: (Very) High | H114: No | I114: 1 | K114: 1 | M114: 1 | O114: 1 | Q114: 1 | S114: 1 | U114: 1 | W114: 1 | Y114: 1 | AA114: 1 | AC114: 1 | AE114: 1 | AG114: 1
A115: 11945 | B115: 15-16 | C115: Male | D115: Black | E115: Youth rehabilitation order | F115: (Very) High | G115: (Very) High | I115: 1 | K115: 1 | M115: 1 | O115: 1 | Q115: 1 | S115: 1 | U115: 1 | W115: 1 | Y115: 1 | AA115: 1 | AC115: 1 | AE115: 1 | AG115: 1
A116: 12129 | B116: 15-16 | C116: Male | D116: White | E116: Referral order | F116: Medium | G116: Low | H116: No | I116: 1 | L116: 1 | M116: 1 | O116: 1 | R116: 1 | S116: 1 | U116: 1 | W116: 1 | Y116: 1 | AA116: 1 | AD116: 1 | AF116: 1 | AG116: 1
A117: 12301 | B117: 15-16 | C117: Male | D117: White | E117: Referral order | F117: (Very) High | G117: (Very) High | H117: Yes | I117: 1 | K117: 1 | M117: 1 | O117: 1 | R117: 1 | T117: 1 | U117: 1 | W117: 1 | Y117: 1 | AA117: 1 | AD117: 1 | AF117: 1 | AG117: 1
A118: 12090 | B118: 15-16 | C118: Male | D118: White | E118: Referral order | F118: Low | G118: Medium | H118: No | I118: 1 | K118: 1 | M118: 1 | O118: 1 | Q118: 1 | U118: 1 | W118: 1 | AA118: 1 | AC118: 1 | AE118: 1 | AG118: 1
A119: 12089 | B119: 10-14 | D119: Mixed | E119: Referral order | F119: Low | G119: Low | H119: No | I119: 1 | L119: 1 | M119: 1 | O119: 1 | R119: 1 | U119: 1 | W119: 1 | AA119: 1 | AC119: 1 | AE119: 1 | AG119: 1
A120: 12045 | B120: 17+ | C120: Male | D120: White | E120: Referral order | F120: Medium | G120: Medium | H120: No | I120: 1 | K120: 1 | M120: 1 | O120: 1 | Q120: 1 | S120: 1 | V120: 1 | X120: 1 | Z120: 1 | AA120: 1 | AC120: 1 | AE120: 1 | AG120: 1
A121: 12132 | B121: 17+ | C121: Male | D121: White | E121: Referral order | F121: Low | G121: Low | H121: No | I121: 1 | L121: 1 | M121: 1 | O121: 1 | Q121: 1 | U121: 1 | W121: 1 | AA121: 1 | AC121: 1 | AE121: 1 | AG121: 1
A122: 12300 | B122: 10-14 | C122: Male | D122: White | E122: Referral order | F122: (Very) High | G122: (Very) High | H122: Yes | J122: 1 | L122: 1 | N122: 1 | P122: 1 | R122: 1 | T122: 1 | V122: 1 | X122: 1 | Z122: 1 | AB122: 1 | AD122: 1 | AF122: 1 | AG122: 1
A123: 12302 | B123: 17+ | C123: Male | D123: White | E123: Referral order | F123: Low | G123: Low | H123: No | I123: 1 | K123: 1 | M123: 1 | O123: 1 | U123: 1 | AA123: 1 | AG123: 1
A124: 12304 | B124: 17+ | C124: Male | D124: White | E124: Referral order | F124: Medium | G124: (Very) High | H124: No | I124: 1 | K124: 1 | M124: 1 | O124: 1 | Q124: 1 | S124: 1 | U124: 1 | W124: 1 | Y124: 1 | AA124: 1 | AC124: 1 | AE124: 1 | AG124: 1
A125: 12044 | B125: 15-16 | C125: Male | D125: White | E125: Referral order | F125: Low | G125: Low | H125: No | I125: 1 | L125: 1 | N125: 1 | P125: 1 | R125: 1 | T125: 1 | V125: 1 | X125: 1 | Z125: 1 | AB125: 1 | AD125: 1 | AF125: 1 | AG125: 1
A126: 12297 | B126: 17+ | C126: Male | D126: Mixed | E126: Referral order | F126: Medium | G126: (Very) High | H126: No | J126: 1 | K126: 1 | M126: 1 | P126: 1 | R126: 1 | T126: 1 | V126: 1 | X126: 1 | Z126: 1 | AB126: 1 | AD126: 1 | AF126: 1 | AG126: 1
A127: 12303 | B127: 17+ | C127: Female | D127: White | E127: Referral order | F127: Medium | G127: (Very) High | H127: Yes | J127: 1 | K127: 1 | M127: 1 | P127: 1 | R127: 1 | S127: 1 | U127: 1 | W127: 1 | Z127: 1 | AA127: 1 | AD127: 1 | AF127: 1 | AG127: 1
A128: 12092 | B128: 17+ | C128: Male | D128: Other | E128: Referral order | F128: Medium | G128: Medium | H128: Yes | I128: 1 | K128: 1 | M128: 1 | O128: 1 | Q128: 1 | S128: 1 | U128: 1 | W128: 1 | Y128: 1 | AA128: 1 | AC128: 1 | AE128: 1 | AG128: 1
A129: 12209 | B129: 15-16 | C129: Male | D129: White | E129: Referral order | F129: Medium | G129: Medium | H129: No | I129: 1 | L129: 1 | M129: 1 | O129: 1 | Q129: 1 | S129: 1 | U129: 1 | W129: 1 | Y129: 1 | AA129: 1 | AC129: 1 | AE129: 1 | AG129: 1
A130: 12091 | B130: 15-16 | C130: Male | D130: White | E130: Referral order | F130: Medium | G130: Low | H130: No | I130: 1 | K130: 1 | M130: 1 | O130: 1 | Q130: 1 | S130: 1 | U130: 1 | W130: 1 | Y130: 1 | AB130: 1 | AD130: 1 | AF130: 1 | AG130: 1
A131: 12131 | B131: 15-16 | C131: Male | D131: White | E131: Referral order | F131: Low | G131: Low | H131: No | I131: 1 | L131: 1 | M131: 1 | P131: 1 | R131: 1 | V131: 1 | X131: 1 | AA131: 1 | AD131: 1 | AE131: 1 | AG131: 1
A132: 12305 | B132: 15-16 | C132: Male | D132: Black | E132: Youth rehabilitation order | F132: (Very) High | G132: Medium | H132: Yes | I132: 1 | K132: 1 | M132: 1 | O132: 1 | Q132: 1 | T132: 1 | U132: 1 | W132: 1 | Z132: 1 | AA132: 1 | AC132: 1 | AE132: 1 | AG132: 1
A133: 12211 | B133: 15-16 | C133: Male | D133: White | E133: Youth rehabilitation order | F133: (Very) High | G133: (Very) High | H133: Yes | J133: 1 | K133: 1 | M133: 1 | R133: 1 | S133: 1 | V133: 1 | X133: 1 | Z133: 1 | AB133: 1 | AD133: 1 | AF133: 1 | AG133: 1
A134: 12210 | B134: 10-14 | C134: Male | D134: White | E134: Youth rehabilitation order | F134: Medium | G134: (Very) High | H134: Yes | I134: 1 | K134: 1 | M134: 1 | O134: 1 | Q134: 1 | T134: 1 | AA134: 1 | AC134: 1 | AE134: 1 | AG134: 1
A135: 12307 | B135: 15-16 | C135: Female | D135: White | E135: Youth rehabilitation order | F135: Medium | G135: (Very) High | H135: Yes | I135: 1 | K135: 1 | M135: 1 | P135: 1 | Q135: 1 | S135: 1 | U135: 1 | W135: 1 | Z135: 1 | AB135: 1 | AD135: 1 | AF135: 1 | AG135: 1
A136: 12316 | B136: 17+ | C136: Male | D136: White | E136: Youth rehabilitation order | F136: Medium | G136: Medium | H136: No | I136: 1 | K136: 1 | M136: 1 | O136: 1 | Q136: 1 | S136: 1 | U136: 1 | W136: 1 | Y136: 1 | AA136: 1 | AC136: 1 | AE136: 1 | AG136: 1
A137: 12093 | B137: 17+ | C137: Male | D137: Black | E137: Youth rehabilitation order | F137: Medium | G137: Medium | H137: Yes | I137: 1 | K137: 1 | M137: 1 | O137: 1 | Q137: 1 | S137: 1 | U137: 1 | W137: 1 | Y137: 1 | AA137: 1 | AC137: 1 | AE137: 1 | AG137: 1
A138: 12309 | B138: 17+ | C138: Male | D138: Black | E138: Youth rehabilitation order | F138: (Very) High | G138: (Very) High | H138: Yes | I138: 1 | K138: 1 | M138: 1 | O138: 1 | R138: 1 | T138: 1 | U138: 1 | W138: 1 | Y138: 1 | AA138: 1 | AC138: 1 | AE138: 1 | AG138: 1
A139: 12041 | B139: 15-16 | C139: Male | D139: White | E139: Youth rehabilitation order | F139: (Very) High | G139: (Very) High | H139: No | I139: 1 | K139: 1 | M139: 1 | P139: 1 | R139: 1 | T139: 1 | U139: 1 | X139: 1 | Z139: 1 | AB139: 1 | AD139: 1 | AF139: 1 | AG139: 1
A140: 12299 | B140: 17+ | C140: Male | D140: White | E140: Youth rehabilitation order | F140: Medium | G140: Medium | H140: No | J140: 1 | L140: 1 | N140: 1 | P140: 1 | R140: 1 | T140: 1 | V140: 1 | X140: 1 | Z140: 1 | AB140: 1 | AD140: 1 | AF140: 1 | AG140: 1
A141: 12308 | B141: 17+ | C141: Male | D141: White | E141: Youth rehabilitation order | F141: (Very) High | G141: (Very) High | H141: No | J141: 1 | L141: 1 | N141: 1 | O141: 1 | R141: 1 | T141: 1 | U141: 1 | W141: 1 | AA141: 1 | AC141: 1 | AF141: 1 | AG141: 1
A142: 12133 | B142: 15-16 | C142: Female | D142: White | E142: Youth rehabilitation order | F142: Low | G142: Medium | H142: No | I142: 1 | K142: 1 | N142: 1 | O142: 1 | Q142: 1 | S142: 1 | U142: 1 | W142: 1 | Y142: 1 | AA142: 1 | AC142: 1 | AE142: 1 | AG142: 1
A143: 12298 | B143: 15-16 | C143: Male | D143: Mixed | E143: Referral order | F143: Medium | G143: Medium | H143: No | I143: 1 | K143: 1 | M143: 1 | O143: 1 | R143: 1 | S143: 1 | U143: 1 | W143: 1 | AB143: 1 | AD143: 1 | AE143: 1 | AG143: 1
A144: 12043 | B144: 17+ | C144: Male | D144: White | E144: Custody | F144: (Very) High | G144: (Very) High | H144: No | J144: 1 | K144: 1 | M144: 1 | P144: 1 | R144: 1 | T144: 1 | U144: 1 | X144: 1 | Z144: 1 | AB144: 1 | AD144: 1 | AF144: 1 | AG144: 1
A145: 12317 | B145: 15-16 | C145: Male | D145: White | E145: Custody | F145: (Very) High | G145: (Very) High | H145: Yes | I145: 1 | K145: 1 | M145: 1 | O145: 1 | Q145: 1 | S145: 1 | U145: 1 | W145: 1 | Y145: 1 | AA145: 1 | AC145: 1 | AE145: 1 | AG145: 1
A146: 12929 | B146: 15-16 | C146: Male | D146: White | E146: Referral order | F146: Medium | G146: Medium | H146: No | I146: 1 | K146: 1 | M146: 1 | O146: 1 | Q146: 1 | S146: 1 | V146: 1 | X146: 1 | Y146: 1 | AB146: 1 | AD146: 1 | AF146: 1 | AG146: 1
A147: 12931 | B147: 10-14 | C147: Male | D147: Mixed | E147: Referral order | F147: Medium | G147: (Very) High | H147: No | I147: 1 | K147: 1 | M147: 1 | O147: 1 | Q147: 1 | S147: 1 | U147: 1 | W147: 1 | Y147: 1 | AA147: 1 | AC147: 1 | AE147: 1 | AG147: 1
A148: 12986 | B148: 17+ | C148: Male | D148: Asian | E148: Referral order | F148: Medium | G148: Medium | H148: No | I148: 1 | K148: 1 | M148: 1 | O148: 1 | Q148: 1 | S148: 1 | U148: 1 | W148: 1 | Y148: 1 | AA148: 1 | AC148: 1 | AG148: 1
A149: 13042 | B149: 15-16 | C149: Male | D149: Black | E149: Referral order | F149: Low | G149: Low | H149: Yes | I149: 1 | K149: 1 | M149: 1 | O149: 1 | Q149: 1 | U149: 1 | W149: 1 | AA149: 1 | AD149: 1 | AF149: 1 | AG149: 1
A150: 12957 | B150: 17+ | C150: Male | D150: White | E150: Referral order | F150: Low | G150: Medium | H150: No | I150: 1 | K150: 1 | M150: 1 | O150: 1 | Q150: 1 | U150: 1 | W150: 1 | AB150: 1 | AC150: 1 | AF150: 1 | AG150: 1
A151: 12984 | B151: 17+ | C151: Male | D151: White | E151: Referral order | F151: (Very) High | G151: (Very) High | H151: No | I151: 1 | L151: 1 | N151: 1 | O151: 1 | R151: 1 | T151: 1 | V151: 1 | X151: 1 | Z151: 1 | AB151: 1 | AD151: 1 | AF151: 1 | AG151: 1
A152: 12928 | B152: 15-16 | C152: Male | D152: Asian | E152: Referral order | F152: Medium | G152: Medium | H152: No | I152: 1 | K152: 1 | M152: 1 | O152: 1 | Q152: 1 | T152: 1 | U152: 1 | W152: 1 | Z152: 1 | AA152: 1 | AC152: 1 | AF152: 1 | AG152: 1
A153: 12985 | B153: 15-16 | C153: Male | D153: White | E153: Referral order | F153: Low | G153: Low | I153: 1 | K153: 1 | M153: 1 | O153: 1 | U153: 1 | AA153: 1 | AG153: 1
A154: 12930 | B154: 15-16 | C154: Male | D154: Asian | E154: Referral order | F154: Low | G154: Low | H154: No | I154: 1 | K154: 1 | M154: 1 | O154: 1 | U154: 1 | AB154: 1 | AG154: 1
A155: 12967 | B155: 15-16 | C155: Male | D155: Asian | E155: Referral order | F155: Low | G155: Low | H155: No | I155: 1 | K155: 1 | M155: 1 | O155: 1 | U155: 1 | AA155: 1 | AC155: 1 | AG155: 1
A156: 13044 | B156: 15-16 | C156: Male | D156: Mixed | E156: Referral order | F156: Medium | G156: Medium | H156: Yes | I156: 1 | K156: 1 | M156: 1 | O156: 1 | Q156: 1 | S156: 1 | U156: 1 | W156: 1 | Y156: 1 | AA156: 1 | AC156: 1 | AF156: 1 | AG156: 1
A157: 12988 | B157: 17+ | C157: Male | E157: Referral order | F157: Medium | G157: Medium | H157: No | I157: 1 | K157: 1 | M157: 1 | O157: 1 | Q157: 1 | S157: 1 | U157: 1 | W157: 1 | Y157: 1 | AA157: 1 | AG157: 1
A158: 12969 | B158: 17+ | C158: Male | D158: Black | E158: Youth rehabilitation order | F158: Medium | G158: (Very) High | I158: 1 | K158: 1 | M158: 1 | O158: 1 | Q158: 1 | S158: 1 | U158: 1 | W158: 1 | Y158: 1 | AA158: 1 | AC158: 1 | AE158: 1 | AG158: 1
A159: 12933 | B159: 17+ | C159: Male | D159: White | E159: Youth rehabilitation order | F159: (Very) High | G159: Medium | I159: 1 | K159: 1 | M159: 1 | O159: 1 | Q159: 1 | S159: 1 | U159: 1 | W159: 1 | Y159: 1 | AA159: 1 | AC159: 1 | AG159: 1
A160: 12968 | B160: 17+ | C160: Male | D160: White | E160: Youth rehabilitation order | F160: Medium | G160: Medium | H160: No | I160: 1 | K160: 1 | M160: 1 | O160: 1 | Q160: 1 | S160: 1 | V160: 1 | W160: 1 | Z160: 1 | AA160: 1 | AC160: 1 | AG160: 1
A161: 12932 | B161: 15-16 | C161: Male | D161: Black | E161: Youth rehabilitation order | F161: (Very) High | G161: (Very) High | I161: 1 | K161: 1 | M161: 1 | O161: 1 | Q161: 1 | S161: 1 | U161: 1 | W161: 1 | Y161: 1 | AA161: 1 | AC161: 1 | AE161: 1 | AG161: 1
A162: 12934 | B162: 17+ | C162: Male | D162: Mixed | E162: Youth rehabilitation order | F162: (Very) High | G162: (Very) High | H162: No | I162: 1 | K162: 1 | M162: 1 | O162: 1 | Q162: 1 | S162: 1 | U162: 1 | W162: 1 | Y162: 1 | AA162: 1 | AC162: 1 | AE162: 1 | AG162: 1
A163: 12987 | B163: 15-16 | C163: Male | D163: Asian | E163: Youth rehabilitation order | F163: (Very) High | G163: (Very) High | H163: Yes | I163: 1 | K163: 1 | M163: 1 | O163: 1 | Q163: 1 | S163: 1 | U163: 1 | W163: 1 | Y163: 1 | AA163: 1 | AC163: 1 | AE163: 1 | AG163: 1
A164: 12973 | B164: 15-16 | C164: Male | D164: Black | E164: Youth rehabilitation order | F164: Medium | G164: Medium | H164: No | I164: 1 | L164: 1 | M164: 1 | O164: 1 | R164: 1 | T164: 1 | V164: 1 | W164: 1 | Z164: 1 | AA164: 1 | AD164: 1 | AF164: 1 | AG164: 1
A165: 12956 | B165: 17+ | C165: Male | D165: Asian | E165: Youth rehabilitation order | F165: Medium | G165: (Very) High | H165: No | I165: 1 | K165: 1 | N165: 1 | O165: 1 | Q165: 1 | S165: 1 | U165: 1 | X165: 1 | Y165: 1 | AA165: 1 | AC165: 1 | AE165: 1 | AG165: 1
A166: 13046 | B166: 10-14 | D166: Mixed | E166: Youth rehabilitation order | F166: Medium | G166: (Very) High | H166: No | I166: 1 | K166: 1 | M166: 1 | O166: 1 | U166: 1 | W166: 1 | Y166: 1 | AA166: 1 | AC166: 1 | AE166: 1 | AG166: 1
A167: 12989 | B167: 15-16 | C167: Male | D167: White | E167: Youth rehabilitation order | F167: Low | G167: (Very) High | H167: No | I167: 1 | K167: 1 | M167: 1 | O167: 1 | Q167: 1 | U167: 1 | W167: 1 | AB167: 1 | AC167: 1 | AG167: 1
A168: 12991 | B168: 17+ | C168: Male | D168: White | E168: Youth rehabilitation order | F168: Medium | G168: Medium | I168: 1 | K168: 1 | M168: 1 | O168: 1 | Q168: 1 | S168: 1 | U168: 1 | W168: 1 | Y168: 1 | AA168: 1 | AC168: 1 | AE168: 1 | AG168: 1
A169: 12971 | B169: 17+ | C169: Male | D169: Black | E169: Custody | F169: (Very) High | G169: (Very) High | H169: Yes | I169: 1 | K169: 1 | M169: 1 | P169: 1 | R169: 1 | T169: 1 | V169: 1 | W169: 1 | Y169: 1 | AA169: 1 | AC169: 1 | AE169: 1 | AG169: 1
A170: 12936 | B170: 15-16 | C170: Male | D170: Black | E170: Custody | F170: (Very) High | G170: Medium | H170: No | I170: 1 | K170: 1 | M170: 1 | O170: 1 | Q170: 1 | S170: 1 | U170: 1 | W170: 1 | Y170: 1 | AA170: 1 | AC170: 1 | AE170: 1 | AG170: 1
A171: 12935 | B171: 17+ | C171: Male | D171: White | E171: Custody | F171: (Very) High | G171: Medium | H171: No | I171: 1 | K171: 1 | M171: 1 | O171: 1 | Q171: 1 | S171: 1 | U171: 1 | W171: 1 | Y171: 1 | AA171: 1 | AC171: 1 | AE171: 1 | AG171: 1
A172: 12938 | B172: 10-14 | C172: Male | D172: White | E172: Custody | F172: (Very) High | G172: (Very) High | H172: No | I172: 1 | K172: 1 | M172: 1 | O172: 1 | Q172: 1 | S172: 1 | U172: 1 | W172: 1 | Y172: 1 | AA172: 1 | AC172: 1 | AE172: 1 | AG172: 1
A173: 13043 | B173: 17+ | C173: Male | D173: White | E173: Custody | F173: (Very) High | G173: (Very) High | H173: Yes | I173: 1 | K173: 1 | M173: 1 | O173: 1 | Q173: 1 | S173: 1 | U173: 1 | W173: 1 | Y173: 1 | AA173: 1 | AC173: 1 | AE173: 1 | AG173: 1
A174: 12970 | B174: 15-16 | C174: Male | D174: White | E174: Custody | F174: (Very) High | G174: (Very) High | H174: Yes | I174: 1 | K174: 1 | M174: 1 | O174: 1 | Q174: 1 | S174: 1 | U174: 1 | W174: 1 | Y174: 1 | AA174: 1 | AC174: 1 | AG174: 1
A175: 12975 | B175: 10-14 | C175: Male | D175: White | E175: Youth rehabilitation order | F175: (Very) High | G175: (Very) High | H175: No | I175: 1 | K175: 1 | N175: 1 | O175: 1 | Q175: 1 | S175: 1 | V175: 1 | W175: 1 | Z175: 1 | AB175: 1 | AD175: 1 | AF175: 1 | AG175: 1
A176: 13292 | B176: 17+ | C176: Male | D176: Black | E176: Referral order | F176: Medium | G176: Medium | H176: No | J176: 1 | L176: 1 | N176: 1 | P176: 1 | R176: 1 | T176: 1 | V176: 1 | X176: 1 | Z176: 1 | AB176: 1 | AD176: 1 | AF176: 1 | AG176: 1
A177: 13294 | B177: 17+ | C177: Male | D177: Asian | E177: Referral order | F177: Medium | G177: Low | H177: No | J177: 1 | L177: 1 | N177: 1 | O177: 1 | R177: 1 | T177: 1 | V177: 1 | X177: 1 | Z177: 1 | AB177: 1 | AD177: 1 | AG177: 1
A178: 13293 | B178: 15-16 | C178: Female | D178: White | E178: Referral order | F178: (Very) High | G178: (Very) High | H178: No | I178: 1 | L178: 1 | N178: 1 | P178: 1 | R178: 1 | T178: 1 | V178: 1 | W178: 1 | Z178: 1 | AB178: 1 | AC178: 1 | AE178: 1 | AG178: 1
A179: 13296 | B179: 17+ | C179: Male | D179: White | E179: Referral order | F179: Medium | G179: Medium | H179: No | I179: 1 | K179: 1 | M179: 1 | O179: 1 | R179: 1 | T179: 1 | U179: 1 | X179: 1 | Y179: 1 | AA179: 1 | AC179: 1 | AF179: 1 | AG179: 1
A180: 13129 | C180: Male | D180: White | E180: Referral order | F180: Medium | G180: (Very) High | H180: No | I180: 1 | K180: 1 | N180: 1 | O180: 1 | Q180: 1 | S180: 1 | U180: 1 | W180: 1 | Y180: 1 | AA180: 1 | AD180: 1 | AE180: 1 | AG180: 1
A181: 13354 | B181: 17+ | C181: Male | D181: Black | E181: Referral order | F181: (Very) High | G181: Low | H181: No | I181: 1 | L181: 1 | N181: 1 | O181: 1 | R181: 1 | T181: 1 | V181: 1 | X181: 1 | Z181: 1 | AB181: 1 | AF181: 1 | AG181: 1
A182: 13202 | B182: 17+ | C182: Male | D182: White | E182: Referral order | F182: Low | G182: Medium | J182: 1 | L182: 1 | N182: 1 | O182: 1 | R182: 1 | U182: 1 | X182: 1 | AB182: 1 | AD182: 1 | AG182: 1
A183: 13201 | B183: 17+ | C183: Male | D183: Black | E183: Referral order | F183: (Very) High | G183: Medium | H183: No | I183: 1 | K183: 1 | M183: 1 | O183: 1 | Q183: 1 | S183: 1 | U183: 1 | W183: 1 | Z183: 1 | AA183: 1 | AC183: 1 | AE183: 1 | AG183: 1
A184: 13116 | B184: 17+ | C184: Male | D184: Asian | E184: Referral order | F184: Low | G184: Low | H184: No | I184: 1 | K184: 1 | M184: 1 | O184: 1 | U184: 1 | AA184: 1 | AC184: 1 | AE184: 1 | AG184: 1
A185: 13204 | B185: 17+ | C185: Male | D185: White | E185: Referral order | F185: Low | G185: Low | H185: No | I185: 1 | L185: 1 | M185: 1 | O185: 1 | Q185: 1 | V185: 1 | W185: 1 | AB185: 1 | AD185: 1 | AG185: 1
A186: 13203 | B186: 17+ | C186: Male | D186: Mixed | E186: Referral order | F186: Medium | G186: Low | H186: No | I186: 1 | K186: 1 | M186: 1 | O186: 1 | S186: 1 | U186: 1 | Y186: 1 | AA186: 1 | AC186: 1 | AG186: 1
A187: 13295 | B187: 17+ | C187: Male | D187: White | E187: Referral order | F187: Medium | G187: Low | H187: No | I187: 1 | K187: 1 | M187: 1 | O187: 1 | S187: 1 | U187: 1 | Y187: 1 | AA187: 1 | AG187: 1
A188: 13124 | B188: 15-16 | C188: Male | D188: White | E188: Youth rehabilitation order | F188: Low | G188: Medium | H188: No | I188: 1 | K188: 1 | N188: 1 | O188: 1 | S188: 1 | U188: 1 | Y188: 1 | AA188: 1 | AC188: 1 | AE188: 1 | AG188: 1
A189: 13131 | B189: 17+ | C189: Male | D189: Mixed | E189: Youth rehabilitation order | F189: Medium | G189: Low | H189: No | I189: 1 | K189: 1 | M189: 1 | O189: 1 | S189: 1 | U189: 1 | Y189: 1 | AA189: 1 | AC189: 1 | AG189: 1
A190: 13130 | B190: 17+ | D190: White | E190: Youth rehabilitation order | H190: No | I190: 1 | O190: 1 | R190: 1 | S190: 1 | U190: 1 | W190: 1 | Y190: 1 | AA190: 1 | AC190: 1 | AG190: 1
A191: 13133 | B191: 10-14 | C191: Male | D191: White | E191: Youth rehabilitation order | F191: Medium | G191: Medium | H191: No | I191: 1 | K191: 1 | M191: 1 | P191: 1 | Q191: 1 | T191: 1 | V191: 1 | W191: 1 | Y191: 1 | AA191: 1 | AD191: 1 | AG191: 1
A192: 13230 | B192: 17+ | C192: Male | D192: Black | E192: Youth rehabilitation order | F192: (Very) High | G192: (Very) High | H192: No | I192: 1 | L192: 1 | M192: 1 | O192: 1 | Q192: 1 | T192: 1 | U192: 1 | W192: 1 | Y192: 1 | AB192: 1 | AD192: 1 | AF192: 1 | AG192: 1
A193: 13297 | B193: 17+ | C193: Male | D193: White | E193: Youth rehabilitation order | F193: Medium | G193: (Very) High | H193: Yes | J193: 1 | L193: 1 | N193: 1 | O193: 1 | R193: 1 | S193: 1 | U193: 1 | X193: 1 | Y193: 1 | AA193: 1 | AC193: 1 | AG193: 1
A194: 13205 | B194: 17+ | C194: Male | D194: Black | E194: Youth rehabilitation order | F194: (Very) High | G194: Medium | H194: Yes | I194: 1 | K194: 1 | M194: 1 | O194: 1 | Q194: 1 | S194: 1 | AA194: 1 | AC194: 1 | AE194: 1 | AG194: 1
A195: 13207 | B195: 17+ | C195: Male | D195: Black | E195: Youth rehabilitation order | F195: Medium | G195: Medium | H195: No | I195: 1 | L195: 1 | N195: 1 | O195: 1 | Q195: 1 | S195: 1 | V195: 1 | X195: 1 | Z195: 1 | AA195: 1 | AC195: 1 | AE195: 1 | AG195: 1
A196: 13357 | B196: 17+ | C196: Male | D196: White | E196: Youth rehabilitation order | F196: Medium | G196: Medium | H196: No | I196: 1 | K196: 1 | N196: 1 | AG196: 1
A197: 13299 | B197: 15-16 | C197: Male | D197: Black | E197: Youth rehabilitation order | F197: (Very) High | G197: (Very) High | H197: No | I197: 1 | K197: 1 | M197: 1 | P197: 1 | R197: 1 | T197: 1 | V197: 1 | X197: 1 | Y197: 1 | AA197: 1 | AD197: 1 | AG197: 1
A198: 13298 | B198: 17+ | C198: Male | D198: Asian | E198: Custody | F198: (Very) High | G198: (Very) High | H198: Yes | I198: 1 | K198: 1 | N198: 1 | O198: 1 | Q198: 1 | S198: 1 | V198: 1 | W198: 1 | Z198: 1 | AB198: 1 | AC198: 1 | AF198: 1 | AG198: 1
A199: 13359 | B199: 17+ | C199: Male | D199: White | E199: Custody | F199: (Very) High | G199: (Very) High | H199: Yes | I199: 1 | K199: 1 | N199: 1 | O199: 1 | R199: 1 | S199: 1 | U199: 1 | W199: 1 | Y199: 1 | AB199: 1 | AD199: 1 | AF199: 1 | AG199: 1
A200: 13132 | B200: 17+ | C200: Male | D200: White | E200: Custody | F200: (Very) High | G200: (Very) High | H200: Yes | I200: 1 | K200: 1 | M200: 1 | O200: 1 | Q200: 1 | S200: 1 | U200: 1 | W200: 1 | Y200: 1 | AA200: 1 | AC200: 1 | AE200: 1 | AG200: 1
... 1055 more rows

Sheet D3 Pivot_Chart Data (hidden)
B1: Assessment | G1: Planning | L1: Implementation and Delivery | Q1: Joint Working
B3: Chart data/calcs | G3: Chart data/calcs | L3: Chart data/calcs | Q3: Chart data/calcs
B4: A3S positive % | C4: A2S positive % | D4: A1S positive % | G4: P3S positive % | H4: P2S positive % | I4: P1S positive % | L4: D3S positive % | M4: D2S positive % | N4: D1S positive % | Q4: J2S positive % | R4: J1S positive %
A5: YOT | B5: =GETPIVOTDATA("Sum of 3AS Positive",$B$24)/SUM(F25:G25) -> 0.6014851485 | C5: =GETPIVOTDATA("Sum of 2AS Positive",$B$24)/SUM(D25:E25) -> 0.5933250927 | D5: =GETPIVOTDATA("Sum of 1AS Positive",$B$24)/SUM(B25:C25) -> 0.7342398022 | F5: YOT | G5: =GETPIVOTDATA("Sum of 3PS Positive",$B$24)/SUM(L25:M25) -> 0.5977011494 | H5: =GETPIVOTDATA("Sum of 2PS Positive",$B$24)/SUM(J25:K25) -> 0.5972461274 | I5: =GETPIVOTDATA("Sum of 1PS Positive",$B$24)/SUM(H25:I25) -> 0.7615480649 | K5: YOT | L5: =GETPIVOTDATA("Sum of 3DS Positive",$B$24)/SUM(R25:S25) -> 0.6435185185 | M5: =GETPIVOTDATA("Sum of 2DS Positive",$B$24)/SUM(P25:Q25) -> 0.6856649396 | N5: =GETPIVOTDATA("Sum of 1DS Positive",$B$24)/SUM(N25:O25) -> 0.7704918033 | P5: YOT | Q5: =GETPIVOTDATA("Sum of 2JS Positive",$B$24)/SUM(V25:W25) -> 0.7749077491 | R5: =GETPIVOTDATA("Sum of 1JS Positive",$B$24)/SUM(T25:U25) -> 0.7072847682
B6: Does assessment sufficiently analyse how to keep other people safe? | C6: Does assessment sufficiently analyse how to keep the child or young person safe? | D6: Does assessment sufficiently analyse how to support the child or young person's desistance? | G6: Does planning focus sufficiently on keeping people safe? | H6: Does planning focus sufficiently on keeping the child or young person safe? | I6: Does planning focus sufficiently on supporting the child or young person’s desistance? | L6: Does service delivery effectively support the safety of other people? | M6: Does service delivery promote the safety and wellbeing of the child or young person? | N6: Does service delivery support the child or young person's desistance? | Q6: Does the YOT work effectively with the police in implementing the out of court disposal? | R6: Are the YOT's recommendations sufficiently well-informed, analytical and personalised to the child or young person, supporting joint decision making?
B10: Assessment Sample size breakdown | G10: Planning Sample size breakdown | L10: Implementation & Delivery Sample size breakdown | Q10: Joint working Sample size breakdown
B11: A1S | C11: A2S | D11: A3S | G11: P1S | H11: P2S | I11: P3S | L11: D1S | M11: D2S | N11: D3S | Q11: J1S | R11: J2S
A12: YOT | B12: =SUM(B25:C25) -> 809 | C12: =SUM(D25:E25) -> 809 | D12: =SUM(F25:G25) -> 808 | F12: YOT | G12: =SUM(H25:I25) -> 801 | H12: =SUM(J25:K25) -> 581 | I12: =SUM(L25:M25) -> 435 | K12: YOT | L12: =SUM(N25:O25) -> 793 | M12: =SUM(P25:Q25) -> 579 | N12: =SUM(R25:S25) -> 432 | P12: YOT | Q12: =SUM(T25:U25) -> 755 | R12: =SUM(V25:W25) -> 542
B17: Age group | C17: (All)
B18: Gender | C18: (All)
B19: Ethnic group | C19: (All)
B20: Out of Court Disposal | C20: (All)
B21: Risk of serious harm | C21: (All)
B22: Safety and well-being classification | C22: (All)
B24: Sum of 1AS Positive | C24: Sum of 1AS Negative | D24: Sum of 2AS Positive | E24: Sum of 2AS Negative | F24: Sum of 3AS Positive | G24: Sum of 3AS Negative | H24: Sum of 1PS Positive | I24: Sum of 1PS Negative | J24: Sum of 2PS Positive | K24: Sum of 2PS Negative | L24: Sum of 3PS Positive | M24: Sum of 3PS Negative | N24: Sum of 1DS Positive | O24: Sum of 1DS Negative | P24: Sum of 2DS Positive | Q24: Sum of 2DS Negative | R24: Sum of 3DS Positive | S24: Sum of 3DS Negative | T24: Sum of 1JS Positive | U24: Sum of 1JS Negative | V24: Sum of 2JS Positive | W24: Sum of 2JS Negative
B25: 594 | C25: 215 | D25: 480 | E25: 329 | F25: 486 | G25: 322 | H25: 610 | I25: 191 | J25: 347 | K25: 234 | L25: 260 | M25: 175 | N25: 611 | O25: 182 | P25: 397 | Q25: 182 | R25: 278 | S25: 154 | T25: 534 | U25: 221 | V25: 420 | W25: 122

Sheet D3 Data (hidden)
A1: DB_ID | B1: Age group | C1: Gender | D1: Ethnic group | E1: Out of Court Disposal | F1: Risk of serious harm | G1: Safety and well-being classification | H1: 1AS Positive | I1: 1AS Negative | J1: 2AS Positive | K1: 2AS Negative | L1: 3AS Positive | M1: 3AS Negative | N1: 1PS Positive | O1: 1PS Negative | P1: 2PS Positive | Q1: 2PS Negative | R1: 3PS Positive | S1: 3PS Negative | T1: 1DS Positive | U1: 1DS Negative | V1: 2DS Positive | W1: 2DS Negative | X1: 3DS Positive | Y1: 3DS Negative | Z1: 1JS Positive | AA1: 1JS Negative | AB1: 2JS Positive | AC1: 2JS Negative | AD1: Year
A2: 11070 | B2: 15-16 | C2: Female | D2: Mixed | E2: Youth conditional caution | I2: 1 | K2: 1 | M2: 1 | O2: 1 | U2: 1 | AA2: 1 | AC2: 1 | AD2: 1
A3: 11082 | B3: 10-14 | C3: Male | D3: White | E3: Youth conditional caution | F3: Medium | G3: Low | H3: 1 | J3: 1 | L3: 1 | N3: 1 | P3: 1 | R3: 1 | T3: 1 | V3: 1 | X3: 1 | Z3: 1 | AB3: 1 | AD3: 1
A4: 11069 | B4: 10-14 | C4: Male | D4: Asian | E4: Youth conditional caution | F4: Low | G4: Low | H4: 1 | J4: 1 | L4: 1 | N4: 1 | T4: 1 | AA4: 1 | AB4: 1 | AD4: 1
A5: 11129 | B5: 15-16 | C5: Male | D5: White | E5: Youth conditional caution | F5: Low | G5: Low | H5: 1 | J5: 1 | L5: 1 | N5: 1 | T5: 1 | Z5: 1 | AB5: 1 | AD5: 1
A6: 11071 | B6: 15-16 | C6: Male | D6: Asian | E6: Youth conditional caution | F6: Medium | G6: Low | H6: 1 | K6: 1 | L6: 1 | O6: 1 | Q6: 1 | S6: 1 | U6: 1 | W6: 1 | Y6: 1 | Z6: 1 | AB6: 1 | AD6: 1
A7: 11110 | B7: 15-16 | C7: Female | D7: White | E7: Youth conditional caution | I7: 1 | K7: 1 | M7: 1 | O7: 1 | Q7: 1 | U7: 1 | W7: 1 | Z7: 1 | AB7: 1 | AD7: 1
A8: 11073 | B8: 15-16 | C8: Male | D8: White | E8: Youth conditional caution | F8: Low | G8: Low | H8: 1 | K8: 1 | M8: 1 | N8: 1 | T8: 1 | Z8: 1 | AB8: 1 | AD8: 1
A9: 11072 | B9: 10-14 | C9: Female | D9: White | E9: Youth conditional caution | F9: Low | G9: Low | I9: 1 | K9: 1 | M9: 1 | O9: 1 | Q9: 1 | S9: 1 | U9: 1 | W9: 1 | Y9: 1 | Z9: 1 | AB9: 1 | AD9: 1
A10: 11075 | B10: 15-16 | C10: Male | D10: White | E10: Youth conditional caution | F10: Medium | G10: Medium | H10: 1 | J10: 1 | L10: 1 | N10: 1 | P10: 1 | R10: 1 | T10: 1 | V10: 1 | X10: 1 | Z10: 1 | AB10: 1 | AD10: 1
A11: 11074 | B11: 10-14 | C11: Male | D11: White | E11: Youth conditional caution | F11: Low | G11: Low | H11: 1 | J11: 1 | L11: 1 | N11: 1 | P11: 1 | T11: 1 | V11: 1 | Z11: 1 | AB11: 1 | AD11: 1
A12: 11084 | B12: 15-16 | C12: Male | D12: White | E12: Youth conditional caution | F12: Low | G12: Low | I12: 1 | K12: 1 | L12: 1 | O12: 1 | Q12: 1 | T12: 1 | W12: 1 | Z12: 1 | AB12: 1 | AD12: 1
A13: 11076 | B13: 10-14 | C13: Male | D13: White | E13: Youth conditional caution | F13: Low | G13: Low | H13: 1 | J13: 1 | L13: 1 | N13: 1 | T13: 1 | Z13: 1 | AB13: 1 | AD13: 1
A14: 11116 | B14: 10-14 | C14: Male | D14: White | E14: Youth conditional caution | F14: Low | G14: Low | I14: 1 | K14: 1 | L14: 1 | N14: 1 | T14: 1 | Z14: 1 | AB14: 1 | AD14: 1
A15: 11109 | B15: 10-14 | C15: Male | D15: White | E15: Youth conditional caution | F15: Low | G15: Low | H15: 1 | K15: 1 | L15: 1 | N15: 1 | T15: 1 | Z15: 1 | AB15: 1 | AD15: 1
A16: 11078 | B16: 10-14 | C16: Male | D16: White | E16: Youth conditional caution | I16: 1 | K16: 1 | M16: 1 | O16: 1 | U16: 1 | Z16: 1 | AC16: 1 | AD16: 1
A17: 11077 | B17: 17+ | C17: Male | D17: Mixed | E17: Youth conditional caution | F17: Low | G17: Low | H17: 1 | K17: 1 | L17: 1 | N17: 1 | T17: 1 | Z17: 1 | AB17: 1 | AD17: 1
A18: 11080 | B18: 10-14 | C18: Male | D18: White | E18: Youth conditional caution | F18: Medium | G18: (Very) High | H18: 1 | J18: 1 | L18: 1 | N18: 1 | P18: 1 | R18: 1 | T18: 1 | V18: 1 | X18: 1 | Z18: 1 | AB18: 1 | AD18: 1
A19: 11112 | B19: 17+ | C19: Male | D19: White | E19: Youth conditional caution | F19: Low | G19: Low | H19: 1 | J19: 1 | L19: 1 | N19: 1 | T19: 1 | Z19: 1 | AB19: 1 | AD19: 1
A20: 11083 | B20: 15-16 | C20: Male | D20: White | E20: Youth conditional caution | F20: Low | G20: Medium | H20: 1 | J20: 1 | L20: 1 | N20: 1 | P20: 1 | T20: 1 | V20: 1 | Z20: 1 | AB20: 1 | AD20: 1
A21: 11111 | B21: 10-14 | C21: Female | D21: White | E21: Youth conditional caution | F21: Low | G21: Low | H21: 1 | K21: 1 | M21: 1 | N21: 1 | T21: 1 | AA21: 1 | AB21: 1 | AD21: 1
A22: 11301 | B22: 10-14 | C22: Male | D22: White | E22: Community resolution | F22: Low | G22: Low | I22: 1 | K22: 1 | M22: 1 | N22: 1 | T22: 1 | AA22: 1 | AC22: 1 | AD22: 1
A23: 11201 | B23: 17+ | C23: Male | D23: White | E23: Youth caution | F23: Low | G23: Medium | H23: 1 | J23: 1 | L23: 1 | N23: 1 | P23: 1 | T23: 1 | V23: 1 | Z23: 1 | AB23: 1 | AD23: 1
A24: 11213 | B24: 10-14 | C24: Male | D24: White | E24: Youth conditional caution | F24: Low | G24: Medium | H24: 1 | J24: 1 | L24: 1 | N24: 1 | P24: 1 | T24: 1 | V24: 1 | Z24: 1 | AB24: 1 | AD24: 1
A25: 11165 | B25: 10-14 | C25: Female | D25: Mixed | E25: Community resolution | F25: Medium | G25: Medium | H25: 1 | J25: 1 | L25: 1 | N25: 1 | P25: 1 | R25: 1 | T25: 1 | V25: 1 | X25: 1 | Z25: 1 | AB25: 1 | AD25: 1
A26: 11304 | B26: 15-16 | C26: Male | D26: White | E26: Youth caution | F26: Low | G26: Low | H26: 1 | K26: 1 | M26: 1 | N26: 1 | T26: 1 | AA26: 1 | AB26: 1 | AD26: 1
A27: 11167 | B27: 10-14 | C27: Male | D27: White | E27: Youth caution | F27: Medium | G27: (Very) High | H27: 1 | J27: 1 | L27: 1 | N27: 1 | P27: 1 | R27: 1 | T27: 1 | V27: 1 | X27: 1 | Z27: 1 | AB27: 1 | AD27: 1
A28: 11279 | B28: 17+ | C28: Male | D28: White | E28: Youth conditional caution | F28: Low | G28: (Very) High | H28: 1 | J28: 1 | L28: 1 | N28: 1 | P28: 1 | R28: 1 | T28: 1 | W28: 1 | X28: 1 | Z28: 1 | AC28: 1 | AD28: 1
A29: 11303 | B29: 10-14 | C29: Female | D29: White | E29: Youth conditional caution | F29: Low | G29: (Very) High | H29: 1 | K29: 1 | M29: 1 | N29: 1 | Q29: 1 | S29: 1 | T29: 1 | W29: 1 | Y29: 1 | AA29: 1 | AB29: 1 | AD29: 1
A30: 11309 | B30: 17+ | C30: Male | D30: White | E30: Community resolution | F30: Low | G30: Low | H30: 1 | J30: 1 | M30: 1 | N30: 1 | S30: 1 | U30: 1 | Y30: 1 | AA30: 1 | AC30: 1 | AD30: 1
A31: 11308 | B31: 10-14 | C31: Male | D31: White | E31: Community resolution | F31: Low | G31: Low | H31: 1 | K31: 1 | L31: 1 | N31: 1 | Q31: 1 | T31: 1 | W31: 1 | Z31: 1 | AC31: 1 | AD31: 1
A32: 11311 | B32: 10-14 | C32: Male | D32: White | E32: Youth caution | F32: Low | G32: Low | I32: 1 | K32: 1 | M32: 1 | O32: 1 | Q32: 1 | S32: 1 | U32: 1 | W32: 1 | Y32: 1 | AA32: 1 | AC32: 1 | AD32: 1
A33: 11169 | B33: 10-14 | C33: Male | D33: White | E33: Youth conditional caution | F33: Low | G33: Medium | H33: 1 | J33: 1 | L33: 1 | N33: 1 | P33: 1 | T33: 1 | V33: 1 | AD33: 1
A34: 11310 | B34: 17+ | C34: Male | D34: White | E34: Youth conditional caution | F34: Low | G34: Low | H34: 1 | J34: 1 | L34: 1 | N34: 1 | T34: 1 | Z34: 1 | AB34: 1 | AD34: 1
A35: 11204 | B35: 15-16 | C35: Female | D35: White | E35: Community resolution | F35: Low | G35: Low | H35: 1 | J35: 1 | L35: 1 | N35: 1 | T35: 1 | Z35: 1 | AD35: 1
A36: 11168 | B36: 17+ | C36: Male | D36: White | E36: Youth caution | F36: Low | G36: Low | H36: 1 | J36: 1 | L36: 1 | N36: 1 | U36: 1 | AD36: 1
A37: 11171 | B37: 15-16 | C37: Male | D37: White | E37: Community resolution | F37: Medium | G37: Medium | H37: 1 | J37: 1 | L37: 1 | N37: 1 | P37: 1 | R37: 1 | T37: 1 | V37: 1 | Y37: 1 | Z37: 1 | AB37: 1 | AD37: 1
A38: 11170 | B38: 10-14 | C38: Male | D38: White | E38: Community resolution | F38: Medium | G38: Low | H38: 1 | K38: 1 | L38: 1 | N38: 1 | Q38: 1 | R38: 1 | U38: 1 | W38: 1 | X38: 1 | AA38: 1 | AB38: 1 | AD38: 1
A39: 11305 | B39: 10-14 | C39: Female | D39: White | E39: Community resolution | F39: Low | G39: Low | K39: 1 | M39: 1 | N39: 1 | Q39: 1 | T39: 1 | V39: 1 | Z39: 1 | AD39: 1
A40: 11172 | B40: 10-14 | C40: Female | D40: Mixed | E40: Youth caution | F40: Medium | G40: Medium | H40: 1 | J40: 1 | L40: 1 | N40: 1 | P40: 1 | R40: 1 | U40: 1 | V40: 1 | X40: 1 | Z40: 1 | AB40: 1 | AD40: 1
A41: 11206 | B41: 10-14 | C41: Male | D41: White | E41: Community resolution | F41: Low | G41: Low | H41: 1 | K41: 1 | L41: 1 | N41: 1 | Q41: 1 | T41: 1 | V41: 1 | AA41: 1 | AB41: 1 | AD41: 1
A42: 11776 | B42: 10-14 | C42: Male | D42: White | E42: Youth conditional caution | F42: Medium | G42: Medium | H42: 1 | J42: 1 | L42: 1 | N42: 1 | P42: 1 | R42: 1 | T42: 1 | V42: 1 | X42: 1 | Z42: 1 | AB42: 1 | AD42: 1
A43: 11775 | B43: 10-14 | C43: Female | D43: White | E43: Youth conditional caution | F43: Low | G43: Low | H43: 1 | J43: 1 | L43: 1 | N43: 1 | P43: 1 | R43: 1 | T43: 1 | V43: 1 | X43: 1 | Z43: 1 | AB43: 1 | AD43: 1
A44: 11824 | B44: 10-14 | C44: Male | D44: White | E44: Youth conditional caution | F44: Low | G44: Medium | H44: 1 | J44: 1 | L44: 1 | N44: 1 | P44: 1 | T44: 1 | V44: 1 | Z44: 1 | AB44: 1 | AD44: 1
A45: 11829 | B45: 15-16 | C45: Male | D45: White | E45: Youth conditional caution | F45: Low | G45: Low | H45: 1 | K45: 1 | L45: 1 | N45: 1 | P45: 1 | T45: 1 | V45: 1 | Z45: 1 | AB45: 1 | AD45: 1
A46: 11777 | B46: 15-16 | C46: Male | D46: White | E46: Youth conditional caution | F46: Low | G46: Low | H46: 1 | J46: 1 | L46: 1 | N46: 1 | T46: 1 | Z46: 1 | AB46: 1 | AD46: 1
A47: 11764 | B47: 10-14 | C47: Male | D47: White | E47: Youth conditional caution | F47: Low | G47: Low | H47: 1 | J47: 1 | L47: 1 | N47: 1 | T47: 1 | Z47: 1 | AB47: 1 | AD47: 1
A48: 11951 | B48: 15-16 | C48: Male | D48: White | E48: Youth conditional caution | F48: Medium | G48: Low | H48: 1 | J48: 1 | L48: 1 | N48: 1 | R48: 1 | T48: 1 | X48: 1 | Z48: 1 | AB48: 1 | AD48: 1
A49: 11983 | B49: 17+ | C49: Male | D49: White | E49: Youth conditional caution | F49: Low | G49: Low | H49: 1 | J49: 1 | L49: 1 | N49: 1 | T49: 1 | AA49: 1 | AB49: 1 | AD49: 1
A50: 11812 | B50: 15-16 | C50: Male | D50: White | E50: Youth conditional caution | F50: Low | G50: Low | H50: 1 | J50: 1 | L50: 1 | N50: 1 | T50: 1 | Z50: 1 | AB50: 1 | AD50: 1
A51: 11815 | B51: 17+ | C51: Male | D51: White | E51: Youth conditional caution | F51: Low | G51: Low | H51: 1 | J51: 1 | L51: 1 | N51: 1 | T51: 1 | Z51: 1 | AB51: 1 | AD51: 1
A52: 11828 | B52: 17+ | C52: Male | D52: White | E52: Youth conditional caution | F52: Low | G52: Medium | H52: 1 | J52: 1 | L52: 1 | N52: 1 | P52: 1 | T52: 1 | V52: 1 | Z52: 1 | AB52: 1 | AD52: 1
A53: 11918 | B53: 10-14 | C53: Male | D53: White | E53: Youth conditional caution | F53: (Very) High | G53: (Very) High | H53: 1 | K53: 1 | L53: 1 | O53: 1 | Q53: 1 | R53: 1 | U53: 1 | V53: 1 | Y53: 1 | AA53: 1 | AB53: 1 | AD53: 1
A54: 11922 | B54: 15-16 | C54: Female | D54: White | E54: Youth conditional caution | F54: Low | G54: Low | H54: 1 | K54: 1 | M54: 1 | N54: 1 | P54: 1 | R54: 1 | U54: 1 | V54: 1 | X54: 1 | Z54: 1 | AB54: 1 | AD54: 1
A55: 11871 | B55: 15-16 | C55: Male | D55: Mixed | E55: Youth conditional caution | F55: Medium | G55: Medium | H55: 1 | J55: 1 | L55: 1 | N55: 1 | P55: 1 | R55: 1 | T55: 1 | V55: 1 | X55: 1 | Z55: 1 | AB55: 1 | AD55: 1
A56: 11814 | B56: 10-14 | C56: Male | D56: White | E56: Youth conditional caution | F56: Low | G56: Low | H56: 1 | J56: 1 | L56: 1 | N56: 1 | P56: 1 | T56: 1 | V56: 1 | Z56: 1 | AB56: 1 | AD56: 1
A57: 11779 | B57: 15-16 | C57: Male | D57: White | E57: Youth conditional caution | F57: Low | G57: Low | H57: 1 | J57: 1 | L57: 1 | N57: 1 | T57: 1 | Z57: 1 | AB57: 1 | AD57: 1
A58: 11944 | B58: 15-16 | C58: Female | D58: White | E58: Youth conditional caution | F58: Low | G58: Low | H58: 1 | J58: 1 | L58: 1 | N58: 1 | T58: 1 | Z58: 1 | AB58: 1 | AD58: 1
A59: 11986 | B59: 10-14 | C59: Male | D59: White | E59: Youth conditional caution | F59: Medium | G59: Medium | H59: 1 | J59: 1 | L59: 1 | N59: 1 | P59: 1 | R59: 1 | T59: 1 | V59: 1 | X59: 1 | AA59: 1 | AC59: 1 | AD59: 1
A60: 11925 | B60: 15-16 | C60: Male | D60: White | E60: Youth conditional caution | F60: Medium | G60: Medium | H60: 1 | J60: 1 | L60: 1 | N60: 1 | P60: 1 | R60: 1 | T60: 1 | V60: 1 | X60: 1 | Z60: 1 | AB60: 1 | AD60: 1
A61: 11818 | B61: 15-16 | C61: Male | D61: White | E61: Youth conditional caution | F61: Low | G61: Low | H61: 1 | J61: 1 | L61: 1 | N61: 1 | T61: 1 | Z61: 1 | AB61: 1 | AD61: 1
A62: 11868 | B62: 10-14 | C62: Male | D62: White | E62: Youth conditional caution | F62: Low | G62: Medium | H62: 1 | J62: 1 | M62: 1 | N62: 1 | P62: 1 | R62: 1 | T62: 1 | V62: 1 | X62: 1 | Z62: 1 | AB62: 1 | AD62: 1
A63: 11817 | B63: 17+ | C63: Male | D63: White | E63: Youth conditional caution | F63: Low | G63: Medium | H63: 1 | J63: 1 | M63: 1 | N63: 1 | Q63: 1 | R63: 1 | T63: 1 | V63: 1 | Y63: 1 | Z63: 1 | AB63: 1 | AD63: 1
A64: 11941 | B64: 17+ | C64: Male | D64: White | E64: Youth caution | I64: 1 | AA64: 1 | AC64: 1 | AD64: 1
A65: 11820 | B65: 10-14 | C65: Male | D65: Black | E65: Youth conditional caution | F65: Low | G65: Low | H65: 1 | K65: 1 | L65: 1 | N65: 1 | Q65: 1 | T65: 1 | W65: 1 | Z65: 1 | AB65: 1 | AD65: 1
A66: 11862 | B66: 15-16 | C66: Male | D66: White | E66: Youth conditional caution | F66: Low | G66: Medium | H66: 1 | K66: 1 | L66: 1 | N66: 1 | P66: 1 | T66: 1 | V66: 1 | AA66: 1 | AB66: 1 | AD66: 1
A67: 11921 | B67: 17+ | C67: Female | D67: White | E67: Youth conditional caution | F67: Low | G67: (Very) High | H67: 1 | J67: 1 | L67: 1 | N67: 1 | P67: 1 | T67: 1 | V67: 1 | AA67: 1 | AB67: 1 | AD67: 1
A68: 11827 | B68: 10-14 | C68: Male | D68: White | E68: Youth conditional caution | F68: Low | G68: Low | H68: 1 | J68: 1 | L68: 1 | N68: 1 | P68: 1 | T68: 1 | V68: 1 | Z68: 1 | AB68: 1 | AD68: 1
A69: 11819 | B69: 15-16 | C69: Male | D69: White | E69: Youth conditional caution | F69: Low | G69: Medium | H69: 1 | J69: 1 | M69: 1 | N69: 1 | Q69: 1 | S69: 1 | T69: 1 | V69: 1 | Y69: 1 | AA69: 1 | AB69: 1 | AD69: 1
A70: 11867 | B70: 10-14 | C70: Male | D70: White | E70: Youth conditional caution | F70: Low | G70: Low | H70: 1 | J70: 1 | L70: 1 | N70: 1 | P70: 1 | T70: 1 | V70: 1 | Z70: 1 | AB70: 1 | AD70: 1
A71: 11831 | B71: 15-16 | C71: Female | D71: White | E71: Youth conditional caution | F71: Low | G71: Medium | H71: 1 | J71: 1 | L71: 1 | N71: 1 | P71: 1 | T71: 1 | V71: 1 | Z71: 1 | AB71: 1 | AD71: 1
A72: 11821 | B72: 10-14 | C72: Male | E72: Youth conditional caution | F72: Low | G72: Low | I72: 1 | K72: 1 | M72: 1 | N72: 1 | P72: 1 | S72: 1 | U72: 1 | V72: 1 | Y72: 1 | AA72: 1 | AB72: 1 | AD72: 1
A73: 11920 | B73: 15-16 | C73: Male | D73: White | E73: Youth caution | F73: Low | G73: Low | H73: 1 | J73: 1 | L73: 1 | N73: 1 | T73: 1 | AA73: 1 | AB73: 1 | AD73: 1
A74: 11785 | B74: 15-16 | C74: Male | D74: White | E74: Youth conditional caution | F74: Low | G74: Low | H74: 1 | J74: 1 | L74: 1 | N74: 1 | T74: 1 | Z74: 1 | AB74: 1 | AD74: 1
A75: 11924 | B75: 15-16 | C75: Male | E75: Youth conditional caution | F75: Low | G75: Low | H75: 1 | J75: 1 | L75: 1 | N75: 1 | T75: 1 | Z75: 1 | AB75: 1 | AD75: 1
A76: 11823 | B76: 15-16 | C76: Male | D76: White | E76: Youth conditional caution | F76: Low | G76: Medium | H76: 1 | J76: 1 | L76: 1 | N76: 1 | P76: 1 | T76: 1 | V76: 1 | Z76: 1 | AB76: 1 | AD76: 1
A77: 11943 | B77: 10-14 | C77: Male | D77: White | E77: Youth conditional caution | G77: Medium | H77: 1 | J77: 1 | L77: 1 | N77: 1 | P77: 1 | R77: 1 | T77: 1 | V77: 1 | X77: 1 | AA77: 1 | AC77: 1 | AD77: 1
A78: 12311 | B78: 15-16 | C78: Male | D78: White | E78: Community resolution | F78: Low | G78: Low | H78: 1 | J78: 1 | L78: 1 | N78: 1 | T78: 1 | Z78: 1 | AB78: 1 | AD78: 1
A79: 12095 | B79: 17+ | C79: Male | D79: White | E79: Youth caution | F79: Medium | H79: 1 | K79: 1 | L79: 1 | AD79: 1
A80: 12094 | B80: 10-14 | C80: Male | D80: White | E80: Youth conditional caution | H80: 1 | K80: 1 | M80: 1 | O80: 1 | Q80: 1 | S80: 1 | T80: 1 | W80: 1 | Y80: 1 | AA80: 1 | AB80: 1 | AD80: 1
A81: 12042 | B81: 17+ | C81: Male | D81: White | E81: Youth caution | I81: 1 | K81: 1 | M81: 1 | N81: 1 | P81: 1 | T81: 1 | V81: 1 | Z81: 1 | AB81: 1 | AD81: 1
A82: 12310 | B82: 15-16 | C82: Male | D82: White | E82: Youth conditional caution | F82: Medium | G82: Medium | H82: 1 | J82: 1 | L82: 1 | N82: 1 | P82: 1 | R82: 1 | T82: 1 | V82: 1 | X82: 1 | Z82: 1 | AB82: 1 | AD82: 1
A83: 12312 | B83: 10-14 | C83: Male | D83: White | E83: Youth conditional caution | F83: Low | G83: Low | I83: 1 | J83: 1 | M83: 1 | N83: 1 | T83: 1 | Z83: 1 | AB83: 1 | AD83: 1
A84: 12097 | B84: 17+ | C84: Male | D84: White | E84: Youth caution | F84: (Very) High | G84: (Very) High | H84: 1 | J84: 1 | L84: 1 | N84: 1 | P84: 1 | R84: 1 | T84: 1 | V84: 1 | X84: 1 | Z84: 1 | AB84: 1 | AD84: 1
A85: 12314 | B85: 10-14 | C85: Male | D85: Black | E85: Youth conditional caution | F85: Medium | G85: Medium | H85: 1 | K85: 1 | M85: 1 | N85: 1 | P85: 1 | R85: 1 | T85: 1 | V85: 1 | X85: 1 | Z85: 1 | AB85: 1 | AD85: 1
A86: 12319 | B86: 15-16 | C86: Female | D86: White | E86: Youth conditional caution | F86: Low | G86: (Very) High | I86: 1 | K86: 1 | L86: 1 | O86: 1 | Q86: 1 | R86: 1 | U86: 1 | W86: 1 | X86: 1 | Z86: 1 | AB86: 1 | AD86: 1
A87: 12046 | B87: 17+ | C87: Male | D87: White | E87: Youth conditional caution | F87: Medium | G87: Medium | H87: 1 | J87: 1 | L87: 1 | N87: 1 | P87: 1 | R87: 1 | T87: 1 | V87: 1 | X87: 1 | Z87: 1 | AB87: 1 | AD87: 1
A88: 12213 | B88: 10-14 | C88: Female | D88: White | E88: Youth conditional caution | F88: Low | G88: (Very) High | H88: 1 | J88: 1 | L88: 1 | N88: 1 | P88: 1 | T88: 1 | V88: 1 | Z88: 1 | AB88: 1 | AD88: 1
A89: 12212 | B89: 10-14 | C89: Male | D89: White | E89: Youth conditional caution | I89: 1 | K89: 1 | M89: 1 | O89: 1 | Q89: 1 | S89: 1 | U89: 1 | W89: 1 | Y89: 1 | AA89: 1 | AC89: 1 | AD89: 1
A90: 12096 | B90: 15-16 | C90: Male | D90: White | E90: Youth conditional caution | F90: Low | G90: Medium | H90: 1 | J90: 1 | L90: 1 | N90: 1 | P90: 1 | R90: 1 | U90: 1 | W90: 1 | X90: 1 | Z90: 1 | AB90: 1 | AD90: 1
A91: 12214 | B91: 15-16 | C91: Male | D91: White | E91: Youth conditional caution | H91: 1 | J91: 1 | M91: 1 | N91: 1 | P91: 1 | R91: 1 | T91: 1 | V91: 1 | X91: 1 | Z91: 1 | AB91: 1 | AD91: 1
A92: 12098 | B92: 10-14 | C92: Male | D92: White | E92: Youth conditional caution | F92: Low | G92: Low | I92: 1 | K92: 1 | L92: 1 | N92: 1 | Q92: 1 | T92: 1 | V92: 1 | Z92: 1 | AB92: 1 | AD92: 1
A93: 12215 | B93: 17+ | C93: Male | D93: White | I93: 1 | K93: 1 | M93: 1 | Z93: 1 | AB93: 1 | AD93: 1
A94: 12099 | B94: 17+ | C94: Male | D94: White | E94: Youth conditional caution | F94: Medium | G94: Medium | I94: 1 | K94: 1 | M94: 1 | O94: 1 | Q94: 1 | S94: 1 | U94: 1 | W94: 1 | Y94: 1 | AA94: 1 | AC94: 1 | AD94: 1
A95: 12315 | B95: 10-14 | C95: Male | D95: Black | E95: Youth conditional caution | H95: 1 | J95: 1 | M95: 1 | N95: 1 | T95: 1 | Z95: 1 | AB95: 1 | AD95: 1
A96: 12318 | B96: 10-14 | C96: Female | D96: White | E96: Youth caution | F96: Low | G96: (Very) High | H96: 1 | K96: 1 | M96: 1 | N96: 1 | Q96: 1 | S96: 1 | T96: 1 | V96: 1 | Y96: 1 | AA96: 1 | AB96: 1 | AD96: 1
A97: 12937 | B97: 10-14 | C97: Male | D97: White | E97: Community resolution | F97: Low | G97: Medium | H97: 1 | J97: 1 | M97: 1 | N97: 1 | P97: 1 | T97: 1 | V97: 1 | Z97: 1 | AB97: 1 | AD97: 1
A98: 12953 | B98: 15-16 | C98: Male | D98: Black | E98: Community resolution | F98: Low | G98: Low | H98: 1 | J98: 1 | L98: 1 | N98: 1 | T98: 1 | Z98: 1 | AB98: 1 | AD98: 1
A99: 13048 | B99: 10-14 | C99: Female | D99: White | E99: Community resolution | F99: Low | G99: Low | H99: 1 | K99: 1 | M99: 1 | N99: 1 | T99: 1 | Z99: 1 | AB99: 1 | AD99: 1
A100: 12939 | B100: 17+ | C100: Male | D100: White | E100: Community resolution | F100: Low | G100: Low | I100: 1 | K100: 1 | M100: 1 | N100: 1 | Q100: 1 | T100: 1 | W100: 1 | Z100: 1 | AB100: 1 | AD100: 1
A101: 12941 | B101: 10-14 | C101: Male | D101: White | E101: Community resolution | F101: Low | G101: Low | H101: 1 | J101: 1 | L101: 1 | N101: 1 | T101: 1 | AD101: 1
A102: 12990 | B102: 10-14 | C102: Male | D102: Mixed | E102: Community resolution | F102: Low | G102: Low | I102: 1 | K102: 1 | M102: 1 | N102: 1 | Q102: 1 | S102: 1 | T102: 1 | W102: 1 | X102: 1 | AA102: 1 | AB102: 1 | AD102: 1
A103: 12958 | B103: 15-16 | C103: Male | D103: White | E103: Community resolution | F103: Low | G103: Low | I103: 1 | K103: 1 | M103: 1 | N103: 1 | T103: 1 | Z103: 1 | AB103: 1 | AD103: 1
A104: 12996 | C104: Male | D104: White | E104: Community resolution | F104: Low | G104: Low | I104: 1 | K104: 1 | M104: 1 | O104: 1 | Q104: 1 | S104: 1 | U104: 1 | W104: 1 | Y104: 1 | AA104: 1 | AC104: 1 | AD104: 1
A105: 12940 | B105: 15-16 | C105: Female | D105: White | E105: Youth caution | F105: Low | G105: Low | H105: 1 | J105: 1 | L105: 1 | N105: 1 | T105: 1 | Z105: 1 | AB105: 1 | AD105: 1
A106: 12943 | B106: 15-16 | C106: Male | D106: Black | E106: Youth conditional caution | F106: Low | G106: Low | H106: 1 | J106: 1 | L106: 1 | N106: 1 | T106: 1 | Z106: 1 | AB106: 1 | AD106: 1
A107: 12955 | B107: 10-14 | C107: Male | D107: White | E107: Youth caution | F107: Low | G107: Low | H107: 1 | J107: 1 | M107: 1 | N107: 1 | R107: 1 | T107: 1 | X107: 1 | AA107: 1 | AB107: 1 | AD107: 1
A108: 12942 | B108: 10-14 | C108: Female | D108: White | E108: Community resolution | H108: 1 | K108: 1 | L108: 1 | N108: 1 | P108: 1 | T108: 1 | V108: 1 | Z108: 1 | AB108: 1 | AD108: 1
A109: 12972 | B109: 15-16 | C109: Female | D109: White | E109: Community resolution | F109: Low | G109: Low | I109: 1 | K109: 1 | M109: 1 | N109: 1 | T109: 1 | Z109: 1 | AB109: 1 | AD109: 1
A110: 13045 | B110: 10-14 | C110: Male | D110: White | E110: Youth caution | F110: Low | G110: Low | I110: 1 | K110: 1 | M110: 1 | N110: 1 | Q110: 1 | S110: 1 | T110: 1 | W110: 1 | X110: 1 | Z110: 1 | AB110: 1 | AD110: 1
A111: 12974 | B111: 17+ | C111: Male | D111: White | E111: Youth caution | I111: 1 | K111: 1 | M111: 1 | N111: 1 | Q111: 1 | S111: 1 | T111: 1 | V111: 1 | Y111: 1 | Z111: 1 | AB111: 1 | AD111: 1
A112: 12993 | B112: 10-14 | C112: Male | D112: Asian | E112: Youth conditional caution | F112: Low | G112: Low | H112: 1 | J112: 1 | L112: 1 | N112: 1 | P112: 1 | T112: 1 | V112: 1 | Z112: 1 | AB112: 1 | AD112: 1
A113: 12954 | B113: 15-16 | C113: Female | D113: White | E113: Community resolution | F113: Low | G113: Low | H113: 1 | J113: 1 | M113: 1 | N113: 1 | T113: 1 | Z113: 1 | AB113: 1 | AD113: 1
A114: 12995 | B114: 10-14 | C114: Female | D114: Mixed | E114: Community resolution | F114: Low | G114: Low | I114: 1 | K114: 1 | M114: 1 | O114: 1 | Q114: 1 | T114: 1 | V114: 1 | Z114: 1 | AB114: 1 | AD114: 1
A115: 13049 | B115: 15-16 | C115: Female | D115: White | E115: Community resolution | F115: Low | G115: Low | H115: 1 | K115: 1 | M115: 1 | N115: 1 | S115: 1 | U115: 1 | Y115: 1 | Z115: 1 | AB115: 1 | AD115: 1
A116: 12994 | B116: 17+ | C116: Female | D116: White | E116: Community resolution | F116: Low | G116: (Very) High | H116: 1 | J116: 1 | L116: 1 | N116: 1 | P116: 1 | T116: 1 | V116: 1 | Z116: 1 | AB116: 1 | AD116: 1
A117: 13234 | B117: 10-14 | C117: Female | D117: Black | E117: Youth caution | F117: Medium | G117: Medium | H117: 1 | J117: 1 | L117: 1 | N117: 1 | P117: 1 | R117: 1 | T117: 1 | V117: 1 | X117: 1 | Z117: 1 | AB117: 1 | AD117: 1
A118: 13136 | B118: 15-16 | C118: Male | D118: Asian | E118: Community resolution | F118: Low | G118: Low | I118: 1 | K118: 1 | M118: 1 | N118: 1 | P118: 1 | T118: 1 | V118: 1 | Z118: 1 | AB118: 1 | AD118: 1
A119: 13232 | B119: 17+ | C119: Male | D119: White | E119: Youth conditional caution | F119: Low | G119: Low | H119: 1 | J119: 1 | L119: 1 | N119: 1 | T119: 1 | AD119: 1
A120: 13209 | B120: 17+ | C120: Male | D120: Black | E120: Youth conditional caution | F120: Low | G120: Low | H120: 1 | J120: 1 | L120: 1 | N120: 1 | T120: 1 | Z120: 1 | AB120: 1 | AD120: 1
A121: 13237 | B121: 10-14 | C121: Male | D121: White | E121: Community resolution | F121: Medium | G121: (Very) High | I121: 1 | J121: 1 | L121: 1 | O121: 1 | T121: 1 | V121: 1 | X121: 1 | Z121: 1 | AB121: 1 | AD121: 1
A122: 13135 | B122: 10-14 | C122: Male | D122: White | E122: Community resolution | F122: Low | G122: (Very) High | H122: 1 | K122: 1 | M122: 1 | N122: 1 | P122: 1 | S122: 1 | T122: 1 | V122: 1 | Y122: 1 | Z122: 1 | AB122: 1 | AD122: 1
A123: 13358 | B123: 17+ | C123: Female | D123: Black | E123: Community resolution | F123: Low | G123: Medium | I123: 1 | J123: 1 | L123: 1 | N123: 1 | Q123: 1 | T123: 1 | V123: 1 | AA123: 1 | AC123: 1 | AD123: 1
A124: 13360 | B124: 15-16 | C124: Male | D124: Mixed | E124: Community resolution | F124: Medium | G124: (Very) High | I124: 1 | K124: 1 | M124: 1 | N124: 1 | Q124: 1 | U124: 1 | V124: 1 | AA124: 1 | AC124: 1 | AD124: 1
A125: 13300 | B125: 17+ | C125: Female | D125: White | E125: Community resolution | F125: Medium | G125: (Very) High | H125: 1 | J125: 1 | L125: 1 | N125: 1 | P125: 1 | R125: 1 | Z125: 1 | AB125: 1 | AD125: 1
A126: 13302 | B126: 15-16 | C126: Male | D126: White | E126: Youth conditional caution | F126: Medium | G126: Medium | I126: 1 | J126: 1 | M126: 1 | U126: 1 | V126: 1 | Y126: 1 | AA126: 1 | AC126: 1 | AD126: 1
A127: 13138 | B127: 15-16 | C127: Male | D127: White | E127: Community resolution | F127: Low | G127: Low | I127: 1 | K127: 1 | L127: 1 | N127: 1 | Q127: 1 | T127: 1 | W127: 1 | AB127: 1 | AD127: 1
A128: 13304 | B128: 10-14 | C128: Female | D128: White | E128: Community resolution | F128: Low | G128: Low | H128: 1 | J128: 1 | L128: 1 | N128: 1 | T128: 1 | Z128: 1 | AB128: 1 | AD128: 1
A129: 13125 | B129: 15-16 | C129: Male | D129: Mixed | E129: Community resolution | F129: Low | G129: Low | I129: 1 | J129: 1 | L129: 1 | O129: 1 | T129: 1 | Z129: 1 | AB129: 1 | AD129: 1
A130: 13137 | B130: 17+ | C130: Male | D130: Mixed | E130: Community resolution | F130: Low | G130: Medium | H130: 1 | J130: 1 | M130: 1 | N130: 1 | P130: 1 | R130: 1 | T130: 1 | V130: 1 | X130: 1 | Z130: 1 | AB130: 1 | AD130: 1
A131: 13139 | B131: 15-16 | C131: Female | D131: White | F131: Low | G131: Low | H131: 1 | J131: 1 | L131: 1 | N131: 1 | T131: 1 | Z131: 1 | AB131: 1 | AD131: 1
A132: 13231 | B132: 10-14 | C132: Male | D132: White | G132: Medium | I132: 1 | K132: 1 | M132: 1 | N132: 1 | Q132: 1 | S132: 1 | T132: 1 | W132: 1 | Y132: 1 | AA132: 1 | AC132: 1 | AD132: 1
A133: 13236 | B133: 15-16 | C133: Male | D133: Black | E133: Community resolution | F133: Medium | G133: Medium | H133: 1 | J133: 1 | L133: 1 | N133: 1 | P133: 1 | R133: 1 | T133: 1 | V133: 1 | X133: 1 | Z133: 1 | AB133: 1 | AD133: 1
A134: 13140 | B134: 10-14 | C134: Male | D134: White | E134: Youth conditional caution | F134: Low | G134: Low | H134: 1 | J134: 1 | L134: 1 | N134: 1 | T134: 1 | Z134: 1 | AB134: 1 | AD134: 1
A135: 13238 | B135: 15-16 | C135: Male | D135: White | E135: Youth conditional caution | F135: Medium | G135: Medium | H135: 1 | J135: 1 | L135: 1 | N135: 1 | P135: 1 | R135: 1 | T135: 1 | V135: 1 | X135: 1 | Z135: 1 | AB135: 1 | AD135: 1
A136: 13943 | B136: 15-16 | C136: Male | D136: White | E136: Youth conditional caution | F136: Medium | G136: (Very) High | H136: 1 | J136: 1 | L136: 1 | N136: 1 | P136: 1 | R136: 1 | T136: 1 | V136: 1 | X136: 1 | AA136: 1 | AB136: 1 | AD136: 1
A137: 14057 | B137: 10-14 | C137: Male | D137: White | E137: Youth conditional caution | F137: (Very) High | G137: Medium | H137: 1 | J137: 1 | L137: 1 | N137: 1 | P137: 1 | R137: 1 | T137: 1 | V137: 1 | X137: 1 | AA137: 1 | AB137: 1 | AD137: 1
A138: 13938 | B138: 15-16 | C138: Female | D138: White | E138: Youth conditional caution | F138: Medium | G138: Medium | H138: 1 | J138: 1 | L138: 1 | N138: 1 | P138: 1 | R138: 1 | T138: 1 | V138: 1 | X138: 1 | AA138: 1 | AC138: 1 | AD138: 1
A139: 13961 | B139: 17+ | C139: Male | D139: White | E139: Youth conditional caution | F139: Medium | G139: Medium | H139: 1 | J139: 1 | L139: 1 | N139: 1 | P139: 1 | R139: 1 | T139: 1 | V139: 1 | X139: 1 | Z139: 1 | AB139: 1 | AD139: 1
A140: 14030 | B140: 15-16 | C140: Female | D140: White | E140: Youth conditional caution | F140: Medium | G140: Medium | H140: 1 | J140: 1 | L140: 1 | N140: 1 | P140: 1 | R140: 1 | T140: 1 | V140: 1 | X140: 1 | Z140: 1 | AB140: 1 | AD140: 1
A141: 14049 | B141: 10-14 | C141: Male | D141: White | E141: Community resolution | F141: Low | G141: Low | H141: 1 | J141: 1 | L141: 1 | N141: 1 | T141: 1 | AD141: 1
A142: 14047 | B142: 10-14 | C142: Male | D142: White | E142: Youth caution | F142: Medium | G142: Low | H142: 1 | J142: 1 | L142: 1 | N142: 1 | R142: 1 | T142: 1 | Y142: 1 | Z142: 1 | AB142: 1 | AD142: 1
A143: 13945 | B143: 10-14 | C143: Male | D143: White | E143: Youth caution | F143: Low | G143: Medium | H143: 1 | J143: 1 | L143: 1 | N143: 1 | P143: 1 | T143: 1 | V143: 1 | AA143: 1 | AC143: 1 | AD143: 1
A144: 14056 | B144: 17+ | C144: Male | D144: Mixed | E144: Youth conditional caution | F144: Medium | G144: Medium | I144: 1 | J144: 1 | M144: 1 | O144: 1 | Q144: 1 | R144: 1 | U144: 1 | W144: 1 | Y144: 1 | AA144: 1 | AB144: 1 | AD144: 1
A145: 13940 | B145: 17+ | C145: Male | D145: White | E145: Youth conditional caution | F145: Low | G145: Medium | H145: 1 | J145: 1 | L145: 1 | N145: 1 | P145: 1 | T145: 1 | V145: 1 | Z145: 1 | AB145: 1 | AD145: 1
A146: 13944 | B146: 15-16 | C146: Male | D146: White | E146: Youth conditional caution | F146: Low | G146: Low | I146: 1 | J146: 1 | L146: 1 | O146: 1 | T146: 1 | AA146: 1 | AC146: 1 | AD146: 1
A147: 13947 | B147: 15-16 | C147: Female | D147: White | E147: Youth conditional caution | F147: Medium | G147: Medium | H147: 1 | J147: 1 | L147: 1 | N147: 1 | P147: 1 | R147: 1 | T147: 1 | V147: 1 | X147: 1 | Z147: 1 | AB147: 1 | AD147: 1
A148: 14058 | B148: 15-16 | C148: Male | D148: White | E148: Youth conditional caution | F148: Low | G148: Low | H148: 1 | J148: 1 | M148: 1 | O148: 1 | Q148: 1 | S148: 1 | T148: 1 | V148: 1 | X148: 1 | Z148: 1 | AB148: 1 | AD148: 1
A149: 13946 | B149: 10-14 | C149: Female | D149: White | E149: Youth conditional caution | F149: Low | G149: Low | I149: 1 | K149: 1 | M149: 1 | O149: 1 | Q149: 1 | U149: 1 | W149: 1 | AA149: 1 | AC149: 1 | AD149: 1
A150: 14063 | B150: 10-14 | C150: Male | D150: White | E150: Youth conditional caution | F150: Medium | G150: Medium | H150: 1 | J150: 1 | M150: 1 | N150: 1 | Z150: 1 | AB150: 1 | AD150: 1
A151: 13950 | B151: 10-14 | C151: Male | D151: White | F151: Low | G151: Low | H151: 1 | J151: 1 | L151: 1 | N151: 1 | T151: 1 | Z151: 1 | AB151: 1 | AD151: 1
A152: 13992 | B152: 17+ | C152: Male | D152: White | E152: Community resolution | H152: 1 | K152: 1 | M152: 1 | N152: 1 | Q152: 1 | U152: 1 | W152: 1 | Z152: 1 | AC152: 1 | AD152: 1
A153: 13963 | B153: 15-16 | C153: Male | D153: White | H153: 1 | J153: 1 | L153: 1 | N153: 1 | P153: 1 | T153: 1 | V153: 1 | Z153: 1 | AB153: 1 | AD153: 1
A154: 14014 | B154: 15-16 | C154: Female | D154: White | I154: 1 | K154: 1 | M154: 1 | O154: 1 | S154: 1 | T154: 1 | Y154: 1 | Z154: 1 | AC154: 1 | AD154: 1
A155: 13965 | B155: 15-16 | C155: Male | D155: White | E155: Youth conditional caution | F155: Medium | G155: Medium | H155: 1 | J155: 1 | L155: 1 | N155: 1 | P155: 1 | R155: 1 | T155: 1 | V155: 1 | X155: 1 | Z155: 1 | AC155: 1 | AD155: 1
A156: 14002 | B156: 10-14 | C156: Male | D156: White | E156: Youth conditional caution | F156: Low | G156: Low | H156: 1 | J156: 1 | L156: 1 | N156: 1 | P156: 1 | R156: 1 | T156: 1 | V156: 1 | X156: 1 | Z156: 1 | AB156: 1 | AD156: 1
A157: 14016 | B157: 15-16 | C157: Male | D157: White | E157: Youth conditional caution | F157: Medium | G157: Low | H157: 1 | K157: 1 | L157: 1 | N157: 1 | R157: 1 | T157: 1 | X157: 1 | Z157: 1 | AB157: 1 | AD157: 1
A158: 13964 | B158: 17+ | C158: Male | D158: White | E158: Youth conditional caution | F158: Low | G158: Medium | H158: 1 | J158: 1 | L158: 1 | N158: 1 | P158: 1 | T158: 1 | V158: 1 | Z158: 1 | AC158: 1 | AD158: 1
A159: 13978 | B159: 10-14 | C159: Male | D159: White | E159: Youth conditional caution | F159: Medium | G159: Low | H159: 1 | J159: 1 | L159: 1 | N159: 1 | T159: 1 | Z159: 1 | AC159: 1 | AD159: 1
A160: 13955 | B160: 10-14 | C160: Female | D160: White | E160: Youth conditional caution | F160: Medium | G160: (Very) High | H160: 1 | J160: 1 | L160: 1 | N160: 1 | P160: 1 | R160: 1 | T160: 1 | V160: 1 | X160: 1 | Z160: 1 | AC160: 1 | AD160: 1
A161: 13980 | B161: 10-14 | C161: Male | D161: White | E161: Youth conditional caution | F161: Medium | G161: Medium | H161: 1 | J161: 1 | L161: 1 | N161: 1 | P161: 1 | R161: 1 | T161: 1 | V161: 1 | X161: 1 | Z161: 1 | AB161: 1 | AD161: 1
A162: 13991 | B162: 10-14 | C162: Male | D162: White | E162: Youth conditional caution | F162: Medium | G162: (Very) High | H162: 1 | J162: 1 | L162: 1 | N162: 1 | P162: 1 | R162: 1 | T162: 1 | V162: 1 | X162: 1 | Z162: 1 | AB162: 1 | AD162: 1
A163: 14019 | B163: 10-14 | C163: Male | D163: White | E163: Youth conditional caution | F163: Medium | G163: Medium | H163: 1 | J163: 1 | L163: 1 | N163: 1 | P163: 1 | R163: 1 | T163: 1 | V163: 1 | X163: 1 | Z163: 1 | AB163: 1 | AD163: 1
A164: 13957 | B164: 15-16 | C164: Male | D164: White | E164: Youth conditional caution | F164: Low | G164: Low | H164: 1 | J164: 1 | L164: 1 | O164: 1 | T164: 1 | Z164: 1 | AB164: 1 | AD164: 1
A165: 13982 | B165: 15-16 | C165: Male | D165: White | E165: Youth conditional caution | F165: Low | G165: Medium | H165: 1 | J165: 1 | L165: 1 | N165: 1 | P165: 1 | T165: 1 | V165: 1 | Z165: 1 | AB165: 1 | AD165: 1
A166: 14021 | B166: 10-14 | C166: Male | D166: White | F166: Low | G166: Medium | H166: 1 | J166: 1 | L166: 1 | N166: 1 | P166: 1 | T166: 1 | V166: 1 | Z166: 1 | AB166: 1 | AD166: 1
A167: 14020 | B167: 10-14 | C167: Male | D167: White | E167: Youth conditional caution | F167: Low | G167: Low | H167: 1 | J167: 1 | L167: 1 | N167: 1 | T167: 1 | Z167: 1 | AB167: 1 | AD167: 1
A168: 13956 | B168: 15-16 | C168: Male | D168: White | E168: Youth conditional caution | F168: Low | G168: Medium | H168: 1 | J168: 1 | L168: 1 | N168: 1 | P168: 1 | T168: 1 | V168: 1 | Z168: 1 | AB168: 1 | AD168: 1
A169: 14023 | B169: 10-14 | C169: Male | D169: White | F169: Medium | G169: Medium | I169: 1 | K169: 1 | M169: 1 | O169: 1 | Q169: 1 | S169: 1 | U169: 1 | W169: 1 | Y169: 1 | AA169: 1 | AC169: 1 | AD169: 1
A170: 14022 | B170: 15-16 | C170: Male | D170: White | E170: Youth conditional caution | F170: Medium | G170: Medium | H170: 1 | J170: 1 | L170: 1 | N170: 1 | P170: 1 | R170: 1 | T170: 1 | V170: 1 | X170: 1 | AA170: 1 | AC170: 1 | AD170: 1
A171: 13971 | B171: 15-16 | C171: Female | D171: Mixed | E171: Youth conditional caution | F171: Low | G171: Medium | H171: 1 | J171: 1 | L171: 1 | N171: 1 | P171: 1 | R171: 1 | T171: 1 | V171: 1 | Y171: 1 | Z171: 1 | AB171: 1 | AD171: 1
A172: 14024 | B172: 17+ | C172: Female | D172: White | E172: Youth caution | F172: Medium | G172: Medium | H172: 1 | J172: 1 | L172: 1 | N172: 1 | Q172: 1 | S172: 1 | T172: 1 | W172: 1 | Y172: 1 | Z172: 1 | AB172: 1 | AD172: 1
A173: 14006 | B173: 10-14 | C173: Male | D173: White | E173: Community resolution | F173: Low | G173: Medium | H173: 1 | J173: 1 | L173: 1 | N173: 1 | P173: 1 | T173: 1 | V173: 1 | Z173: 1 | AC173: 1 | AD173: 1
A174: 13967 | B174: 17+ | C174: Female | D174: White | E174: Youth conditional caution | F174: Low | G174: (Very) High | H174: 1 | J174: 1 | L174: 1 | N174: 1 | P174: 1 | T174: 1 | V174: 1 | Z174: 1 | AB174: 1 | AD174: 1
A175: 14000 | B175: 15-16 | C175: Male | D175: Black | E175: Youth conditional caution | F175: Medium | G175: Medium | H175: 1 | K175: 1 | L175: 1 | N175: 1 | P175: 1 | R175: 1 | T175: 1 | V175: 1 | X175: 1 | Z175: 1 | AC175: 1 | AD175: 1
A176: 14026 | B176: 15-16 | C176: Male | E176: Youth conditional caution | AD176: 1
A177: 13981 | B177: 15-16 | C177: Male | D177: White | E177: Youth conditional caution | F177: (Very) High | G177: (Very) High | H177: 1 | J177: 1 | L177: 1 | N177: 1 | P177: 1 | R177: 1 | T177: 1 | V177: 1 | X177: 1 | Z177: 1 | AB177: 1 | AD177: 1
A178: 14025 | B178: 10-14 | C178: Male | D178: White | E178: Youth conditional caution | F178: Medium | G178: Medium | H178: 1 | J178: 1 | L178: 1 | O178: 1 | P178: 1 | R178: 1 | T178: 1 | V178: 1 | X178: 1 | Z178: 1 | AB178: 1 | AD178: 1
A179: 14102 | B179: 10-14 | C179: Female | D179: White | E179: Youth caution | F179: Low | G179: Medium | H179: 1 | J179: 1 | L179: 1 | N179: 1 | Q179: 1 | U179: 1 | W179: 1 | Z179: 1 | AC179: 1 | AD179: 1
A180: 14076 | B180: 15-16 | C180: Male | D180: White | E180: Youth conditional caution | F180: Low | G180: Low | I180: 1 | K180: 1 | M180: 1 | O180: 1 | U180: 1 | AA180: 1 | AC180: 1 | AD180: 1
A181: 14075 | B181: 15-16 | C181: Male | D181: White | E181: Youth conditional caution | I181: 1 | K181: 1 | M181: 1 | O181: 1 | Q181: 1 | U181: 1 | W181: 1 | AA181: 1 | AC181: 1 | AD181: 1
A182: 14087 | B182: 10-14 | C182: Male | D182: White | E182: Community resolution | F182: Low | G182: Low | I182: 1 | K182: 1 | M182: 1 | O182: 1 | Q182: 1 | U182: 1 | W182: 1 | Z182: 1 | AC182: 1 | AD182: 1
A183: 14089 | B183: 10-14 | C183: Male | D183: White | E183: Youth conditional caution | I183: 1 | K183: 1 | M183: 1 | O183: 1 | Q183: 1 | S183: 1 | U183: 1 | W183: 1 | Y183: 1 | AA183: 1 | AC183: 1 | AD183: 1
A184: 14077 | B184: 17+ | C184: Male | D184: White | E184: Youth conditional caution | F184: Low | G184: Low | H184: 1 | K184: 1 | L184: 1 | O184: 1 | U184: 1 | AA184: 1 | AC184: 1 | AD184: 1
A185: 14079 | B185: 17+ | C185: Male | D185: White | E185: Youth conditional caution | F185: Low | G185: Low | H185: 1 | K185: 1 | M185: 1 | N185: 1 | Q185: 1 | R185: 1 | U185: 1 | W185: 1 | Y185: 1 | Z185: 1 | AC185: 1 | AD185: 1
A186: 14101 | B186: 15-16 | C186: Male | D186: White | E186: Youth caution | F186: Medium | G186: Medium | H186: 1 | J186: 1 | M186: 1 | N186: 1 | Q186: 1 | S186: 1 | U186: 1 | W186: 1 | Y186: 1 | Z186: 1 | AC186: 1 | AD186: 1
A187: 14078 | B187: 10-14 | C187: Male | D187: White | E187: Youth caution | F187: Medium | I187: 1 | K187: 1 | M187: 1 | O187: 1 | Q187: 1 | S187: 1 | U187: 1 | W187: 1 | Y187: 1 | AA187: 1 | AC187: 1 | AD187: 1
A188: 14081 | B188: 15-16 | C188: Male | D188: White | E188: Youth conditional caution | F188: Low | G188: Medium | I188: 1 | K188: 1 | M188: 1 | O188: 1 | Q188: 1 | R188: 1 | T188: 1 | W188: 1 | X188: 1 | AA188: 1 | AB188: 1 | AD188: 1
A189: 14108 | B189: 15-16 | C189: Female | D189: White | E189: Community resolution | F189: Low | G189: Low | I189: 1 | K189: 1 | M189: 1 | N189: 1 | Q189: 1 | S189: 1 | U189: 1 | W189: 1 | Y189: 1 | Z189: 1 | AB189: 1 | AD189: 1
A190: 14088 | B190: 15-16 | C190: Male | D190: White | E190: Youth caution | F190: Low | G190: Low | I190: 1 | K190: 1 | M190: 1 | O190: 1 | Q190: 1 | U190: 1 | W190: 1 | Z190: 1 | AC190: 1 | AD190: 1
A191: 14103 | B191: 10-14 | C191: Male | D191: White | E191: Community resolution | I191: 1 | K191: 1 | M191: 1 | O191: 1 | Q191: 1 | U191: 1 | W191: 1 | AA191: 1 | AC191: 1 | AD191: 1
A192: 14080 | B192: 15-16 | C192: Male | D192: White | E192: Youth caution | F192: Medium | G192: Low | H192: 1 | J192: 1 | L192: 1 | O192: 1 | S192: 1 | U192: 1 | X192: 1 | Z192: 1 | AB192: 1 | AD192: 1
A193: 14472 | C193: Male | D193: White | E193: Community resolution | F193: Medium | G193: Medium | I193: 1 | J193: 1 | L193: 1 | O193: 1 | P193: 1 | R193: 1 | U193: 1 | W193: 1 | Y193: 1 | AA193: 1 | AB193: 1 | AD193: 1
A194: 14420 | C194: Male | D194: Asian | E194: Youth caution | F194: Low | G194: Medium | H194: 1 | J194: 1 | L194: 1 | N194: 1 | P194: 1 | R194: 1 | T194: 1 | V194: 1 | X194: 1 | AA194: 1 | AC194: 1 | AD194: 1
A195: 14416 | B195: 10-14 | C195: Male | D195: White | E195: Youth conditional caution | F195: Medium | G195: (Very) High | H195: 1 | J195: 1 | L195: 1 | N195: 1 | P195: 1 | R195: 1 | T195: 1 | V195: 1 | X195: 1 | Z195: 1 | AB195: 1 | AD195: 1
A196: 14212 | B196: 10-14 | C196: Male | D196: White | E196: Community resolution | F196: Medium | G196: Medium | H196: 1 | J196: 1 | L196: 1 | N196: 1 | P196: 1 | R196: 1 | T196: 1 | V196: 1 | X196: 1 | Z196: 1 | AB196: 1 | AD196: 1
A197: 14202 | B197: 15-16 | C197: Male | D197: White | E197: Youth caution | F197: Low | G197: Low | H197: 1 | J197: 1 | M197: 1 | O197: 1 | T197: 1 | Z197: 1 | AB197: 1 | AD197: 1
A198: 14478 | B198: 15-16 | C198: Male | D198: White | E198: Community resolution | F198: Medium | G198: Medium | H198: 1 | J198: 1 | L198: 1 | N198: 1 | P198: 1 | R198: 1 | T198: 1 | V198: 1 | X198: 1 | Z198: 1 | AB198: 1 | AD198: 1
A199: 14417 | B199: 10-14 | C199: Female | D199: White | E199: Youth caution | I199: 1 | K199: 1 | M199: 1 | O199: 1 | Q199: 1 | S199: 1 | U199: 1 | W199: 1 | Y199: 1 | AA199: 1 | AC199: 1 | AD199: 1
A200: 14213 | B200: 15-16 | C200: Male | D200: Mixed | E200: Youth conditional caution | F200: Medium | G200: Medium | H200: 1 | J200: 1 | L200: 1 | N200: 1 | P200: 1 | R200: 1 | T200: 1 | V200: 1 | X200: 1 | Z200: 1 | AB200: 1 | AD200: 1
... 613 more rows

Sheet Custom lists (hidden)
A1: Gender | C1: Ethnic group | E1: Age | G1: Risk of serious harm | I1: Supervision Type | K1: Out of Court Disposal | M1: Looked after child
A2: Male | C2: White | E2: 10-14 | G2: Low | I2: Custody | K2: Community resolution | M2: Yes
A3: Female | C3: Black | E3: 15-16 | G3: Medium | I3: Referral Order | K3: Youth Caution | M3: No
A4: (blank) | C4: Asian | E4: 17+ | G4: (Very) High | I4: Youth Rehabilitation Order | K4: Youth Conditional Caution | M4: (blank)
C5: Mixed | E5: (blank) | G5: (blank) | I5: (blank) | K5: (blank)
C6: Other
C7: (blank)
